{"text_format":"1","workbook":"xlsx","n_sheets":42,"sheets":["LA Sheets","NOTES","Cairngorms Statement","Summary Data","Legacy Cases","Clock Stops","Glasgow Note","SCOTLAND","Aberdeen City","Aberdeenshire","Angus","Argyll and Bute","Cairngorms National Park","Clackmannanshire","Dumfries and Galloway","Dundee","East Ayrshire","East Dunbartonshire","East Lothian","East Renfrewshire","City of Edinburgh","Falkirk","Fife","Glasgow City","Highland","Inverclyde","Loch Lomond","Midlothian","Moray","Na h-Eileanan Siar","North Ayrshire","North Lanarkshire","Orkney","Perth and Kinross","Renfrewshire","Scottish Borders","Shetland Islands","South Ayrshire","South Lanarkshire","Stirling","West Dunbartonshire","West Lothian"],"not_rendered":{"charts":0,"images":0,"macros":1,"external_links":1,"defined_names":84,"comments":0,"pivot_tables":0},"unopened":[],"bounds":{"document_bytes":16777216,"sheet_cells":100000,"rows_first":2000,"rows_last":500,"rows_between":2000,"halvings":0,"cell_chars":16384,"cell_head_chars":4096},"cells_cut":0,"cells_raw":0,"read":"whole","date_system":"1900"}

{"sheet":"LA Sheets","index":0,"n_rows":47,"n_cols":2,"rows_kept":47,"cut":false,"hidden":false,"merged":[]}
[]
[null,"2018/19 Midyear Planning Performance Statistics"]
[null,"Quarter 1 (April to June)"]
[null,"Scotland Tables"]
[null,"Published 29th January 2019"]
[]
[null,"SCOTLAND"]
[null,"Aberdeen City"]
[null,"Aberdeenshire"]
[null,"Angus"]
[null,"Argyll and Bute"]
[null,"Cairngorms National Park"]
[null,"Clackmannanshire"]
[null,"Dumfries and Galloway"]
[null,"Dundee City"]
[null,"East Ayrshire"]
[null,"East Dunbartonshire"]
[null,"East Lothian"]
[null,"East Renfrewshire"]
[null,"City of Edinburgh"]
[null,"Falkirk"]
[null,"Fife"]
[null,"Glasgow City "]
[null,"Highland"]
[null,"Inverclyde"]
[null,"Loch Lomond and The Trossachs National Park"]
[null,"Midlothian"]
[null,"Moray"]
[null,"Na h-Eileanan Siar"]
[null,"North Ayrshire"]
[null,"North Lanarkshire"]
[null,"Orkney Islands"]
[null,"Perth and Kinross"]
[null,"Renfrewshire"]
[null,"Scottish Borders"]
[null,"Shetland Islands"]
[null,"South Ayrshire"]
[null,"South Lanarkshire"]
[null,"Stirling"]
[null,"West Dunbartonshire"]
[null,"West Lothian"]
[]
[null,"Notes"]
[null,"Cairngorms Statement"]
[null,"Summary Data"]
[null,"Legacy Cases"]
[null,"Clock Stops by Planning Authority"]

{"sheet":"NOTES","index":1,"n_rows":1,"n_cols":15,"rows_kept":1,"cut":false,"hidden":false,"merged":[]}
[null,null,null,null,null,null,null,null,null,null,null,null,null,null,"Return to Contents"]

{"sheet":"Cairngorms Statement","index":2,"n_rows":1,"n_cols":13,"rows_kept":1,"cut":false,"hidden":false,"merged":[]}
[" ",null,null,null,null,null,null,null,null,null,null,null,"Return to contents"]

{"sheet":"Summary Data","index":3,"n_rows":32,"n_cols":16,"rows_kept":32,"cut":false,"hidden":false,"merged":[[22,1,22,3],[22,19,22,21],[22,16,22,18],[22,13,22,15],[22,10,22,12],[22,4,22,6],[22,7,22,9],[4,12,4,13],[13,5,13,6],[13,11,13,12],[13,7,13,8],[4,8,4,9],[4,6,4,7],[4,4,4,5],[13,3,13,4],[4,10,4,11],[4,1,4,3],[13,1,13,2],[13,9,13,10]]}
["Summary Comparisons1",null,null,null,null,null,null,null,null,null,null,null,null,"Return to contents"]
[]
["Local Developments (excluding legacy cases)"]
[null,"Post 3 August 2009",null,null,null,null,null,null,null,null,null,null,"Return To Contents"]
[null,"Q1 - 2018/19",null,null,"Q4 - 2017/18",null,"Q3 - 2017/18",null,"Q2 - 2017/18",null,"Q1 - 2017/18"]
[null,"Applications","Overall Average (Weeks)","Percentage under 2 months","Overall Average (Weeks)","Percentage under 2 months","Overall Average (Weeks)","Percentage under 2 months","Overall Average (Weeks)","Percentage under 2 months","Overall Average (Weeks)","Percentage under 2 months"]
["All Local Developments2",6796,8.9148238459598073,0.7545615067686875,9.3284007801072644,0.72559726962457338,9.0985417394341574,0.7169926650366748,8.9737813653713783,0.74273616586362967,8.8345260308802711,0.77623080235395436]
["Householder",3455,7.2122389911101932,0.85933429811866857,7.622048459282885,0.82715160244868569,7.3454233833611262,0.82976653696498059,7.206294424586055,0.87489214840379637,7.0410364543205866,0.90207209764405338]
["Housing",1221,12.04364104364104,0.56511056511056512,11.960875160875162,0.58828828828828827,11.704140615783887,0.54252683732452522,12.783912588631875,0.51017087062652566,12.156697161623269,0.55747126436781613]
["Business and Industry",399,8.5717866093805934,0.75939849624060152,9.4671389216843753,0.7024793388429752,10.183058147882267,0.6733668341708543,8.9380952380952383,0.70256410256410251,9.5402370555208957,0.69868995633187769]
[]
["Major Developments (excluding legacy cases)"]
[null,"Post 3 August 2009"]
[null,"Q1 - 2018/19",null,"Q4 - 2017/18",null,"Q3 - 2017/18",null,"Q2 - 2017/18",null,"Q1 - 2017/18"]
[null,"Applications","Overall Average (Weeks)","Applications","Overall Average (Weeks)","Applications","Overall Average (Weeks)","Applications","Overall Average (Weeks)","Applications","Overall Average (Weeks)"]
["All Major developments2",54,31.740740740740733,63,34.775510204081634,63,27.673469387755105,57,32.799999999999997,55,39.776623376623377]
["Housing",24,34.642857142857146,33,38.112554112554115,31,33.8110599078341,22,36.402597402597401,30,44.176190476190484]
["Business and Industry",8,24.357142857142858,7,21.510204081632651,6,33.976190476190474,0,0,4,19.857142857142858]
[]
[]
["Legal Agreements Comparison3"]
[null,"Post 3 August 2009"]
[null,"Q1 - 2018/19",null,null,"Q4 - 2017/18",null,null,"Q3 - 2017/18",null,null,"Q2 - 2017/18",null,null,"Q1 - 2017/18"]
[null,"Without Legal Agreements  (weeks)","With Legal Agreement  (weeks)","Overall Average (Weeks)","Without Legal Agreements  (weeks)","With Legal Agreement  (weeks)","Overall Average (Weeks)","Without Legal Agreements  (weeks)","With Legal Agreement  (weeks)","Overall Average (Weeks)","Without Legal Agreements  (weeks)","With Legal Agreement  (weeks)","Overall Average (Weeks)","Without Legal Agreements  (weeks)","With Legal Agreement  (weeks)","Overall Average (Weeks)"]
["All Local",8.6685578292003989,31.594911937377692,8.9148238459598073,8.9165020847048471,32.138832997987926,9.1670393123059881,9.0132453604171285,32.390596745027125,9.3284007801072644,8.9598193633660088,24.346246973365616,9.098541739434161,8.6779216937477557,31.70454545454546,8.9737813653713783]
["All Major",19.68571428571429,46.809523809523803,31.740740740740733,25.580086580086579,44.163265306122454,34.110070257611241,26.064285714285717,49.925465838509311,34.775510204081634,20.516483516483518,39.303571428571423,27.673469387755105,24.4,42.857142857142854,33.010025062656645]
[]
[]
[]
["1. Excludes Other Consents, Local developments with Environmental Impact Assessments, and applications with processing agreements."]
["2. Overall averages per quarter will be affected by the volumes of different case-types that happen to be decided on in that quarter."]
["3. Excludes legacy cases and applications with legal agreements that also had a processing agreement."]

{"sheet":"Legacy Cases","index":4,"n_rows":11,"n_cols":9,"rows_kept":11,"cut":false,"hidden":false,"merged":[]}
["Legacy Cases (pre-3rd August 2009)",null,null,null,null,null,"2018/19 Quarter 1",null,"Return to contents"]
[]
["The following tables show details of applications that were validated pre-3rd August 2009 and so were originally subject to a previous reporting system."]
[]
["Legacy cases by planning authority - applications with processing agreements",null,null,null," Legacy cases by development type - applications with processing agreements"]
["Local Authority","Number of Legacy Cases","% meeting agreed timescales",null,"Development Type","Number of Legacy Cases","% meeting agreed timescales"]
["East Ayrshire",1,100,null,"Electricity generation - Local",1,100]
["Total",{"$f":"SUM(B7:B7)","v":1},100,null,"Total ",{"$f":"SUM(F7:F7)","v":1},100]
[]
["There were no legacy cases without processing agreements"]
[null,null," "]

{"sheet":"Clock Stops","index":5,"n_rows":42,"n_cols":6,"rows_kept":42,"cut":false,"hidden":false,"merged":[]}
["Clock Stops by Planning Authority1,2",null,null,null,"2018/19 Quarter 1"]
[]
["Planning Authority","Total applications decided in 2018/19 Q1","Number of applications with clock stopped","Percentage of applications with clock stopped","Average length of time clock stopped (weeks)","Return to contents"]
["Aberdeen City",263,8,3.0418250950570342E-2,56.5]
["Aberdeenshire",513,7,1.364522417153996E-2,4.1836734693877551]
["Angus",160,0,0,"-"]
["Argyll and Bute",346,23,6.6473988439306353E-2,16.142857142857142]
["Cairngorms National Park",1,0,0,"-"]
["Clackmannanshire",69,9,0.13043478260869565,4.7936507936507935]
["Dumfries and Galloway",346,18,5.2023121387283239E-2,14.230158730158731]
["Dundee City",175,10,5.7142857142857141E-2,29.528571428571428]
["East Ayrshire ",150,22,0.14666666666666667,9.7532467532467528]
["East Dunbartonshire",191,46,0.24083769633507854,4.9347826086956514]
["East Lothian ",271,28,0.10332103321033211,14.73469387755102]
["East Renfrewshire",191,1,5.235602094240838E-3,6]
["City of Edinburgh",929,0,0,"-"]
["Falkirk",177,7,3.954802259887006E-2,9.8367346938775508]
["Fife",521,7,1.3435700575815739E-2,3.4081632653061225]
["Glasgow City",558,74,0.13261648745519714,13.144787644787645]
["Highland",738,53,7.1815718157181574E-2,22.19676549865229]
["Inverclyde",91,7,7.6923076923076927E-2,8.5306122448979593," "]
["Loch Lomond and The Trossachs National Park",56,6,0.10714285714285714,18.761904761904763]
["Midlothian",131,14,0.10687022900763359,16.540816326530614]
["Moray",183,48,0.26229508196721313,7.0119047619047619]
["Na h-Eileanan Siar",106,1,9.433962264150943E-3,26.285714285714285]
["North Ayrshire",172,4,2.3255813953488372E-2,4.5714285714285712]
["North Lanarkshire",248,2,8.0645161290322578E-3,65.714285714285708]
["Orkney Islands",100,8,0.08,3.7857142857142856]
["Perth and Kinross",425,28,6.5882352941176475E-2,12.627551020408163]
["Renfrewshire",236,25,0.1059322033898305,6.765714285714286]
["Scottish Borders",211,0,0,"-"]
["Shetland Islands",68,5,7.3529411764705885E-2,4.3714285714285719]
["South Ayrshire",229,0,0,"-"]
["South Lanarkshire",451,5,1.1086474501108648E-2,15.200000000000001]
["Stirling",186,0,0,"-"]
["West Dunbartonshire",68,17,0.25,8.8487394957983181]
["West Lothian",172,7,4.0697674418604654E-2,53.163265306122454," "]
["SCOTLAND",8732,490,5.6115437471369677E-2,13.548979591836735," "]
["1. Processing Agreements are not included in this analysis."]
[null,null,null,null," "]
[null," "]
[null,null,28,"Authorites with clock stops"]

{"sheet":"Glasgow Note","index":6,"n_rows":0,"n_cols":0,"rows_kept":0,"cut":false,"hidden":true,"merged":[]}

{"sheet":"SCOTLAND","index":7,"n_rows":80,"n_cols":6,"rows_kept":80,"cut":false,"hidden":false,"merged":[[75,0,78,3]]}
["Planning Authority Performance Statistics1,2",null,null,"SCOTLAND"]
[null,null,null,"2018/19 Q1"]
[null,null,null,"Post-3rd August 2009",null,"Back to contents"]
[]
["Category","Total Number of Decisions","% Within Agreed Timescales"]
["Processing Agreements",{"$f":"SUM(B7:B10)","v":674},{"$f":"SUMPRODUCT(B7:B10,C7:C10)/B6","v":0.71958456973293772}]
["Major Applications",{"$f":"SUM('[1]Aberdeen City:West Lothian'!B7)","v":26},{"$f":"[1]Table1!F41","v":0.61538461538461542}]
["Local Applications",{"$f":"SUM('[1]Aberdeen City:West Lothian'!B8)","v":537},{"$f":"[1]Table1!G41","v":0.72625698324022347}]
["EIA developments",{"$f":"SUM('[1]Aberdeen City:West Lothian'!B9)","v":3},{"$f":"[1]Table1!H41","v":0.66666666666666663}]
["Other Consents",{"$f":"SUM('[1]Aberdeen City:West Lothian'!B10)","v":108},{"$f":"[1]Table1!I41","v":0.71296296296296291}]
[]
[null,"Total Number of Decisions","Proportion of Decisions","Average Time (Weeks)"]
["All Major Developments",{"$f":"SUM('[1]Aberdeen City:West Lothian'!B13)","v":54},null,{"$f":"[1]Table2!E40","v":31.740740740740733}]
["Without Legal Agreement",{"$f":"SUM('[1]Aberdeen City:West Lothian'!B14)","v":30},{"$f":"B14/B13","v":0.55555555555555558},{"$f":"[1]Table2!C40","v":19.68571428571429}]
["With Legal Agreement",{"$f":"SUM('[1]Aberdeen City:West Lothian'!B15)","v":24},{"$f":"B15/B13","v":0.44444444444444442},{"$f":"[1]Table2!D40","v":46.809523809523803}]
[]
["All Local Developments",{"$f":"SUM('[1]Aberdeen City:West Lothian'!B17)","v":6796},null,{"$f":"[1]Table3!E40","v":8.9148238459598073}]
["Without Legal Agreement",{"$f":"SUM('[1]Aberdeen City:West Lothian'!B18)","v":6723},{"$f":"B18/B17","v":0.98925838728663917},{"$f":"[1]Table3!C40","v":8.6685578292003989}]
["With Legal Agreement",{"$f":"SUM('[1]Aberdeen City:West Lothian'!B19)","v":73},{"$f":"B19/B17","v":1.07416127133608E-2},{"$f":"[1]Table3!D40","v":31.594911937377692}]
["Local: less than 2 months",{"$f":"SUM('[1]Aberdeen City:West Lothian'!B20)","v":5128},{"$f":"B20/B17","v":0.7545615067686875},{"$f":"[1]Table4!D40","v":6.4707488299531981}]
["Local: more than 2 months",{"$f":"SUM('[1]Aberdeen City:West Lothian'!B21)","v":1668},{"$f":"B21/B17","v":0.24543849323131253},{"$f":"[1]Table4!E40","v":16.428742720109629}]
[]
["All Local developments (non-householder)",{"$f":"SUM('[1]Aberdeen City:West Lothian'!B23)","v":3341},null,{"$f":"[1]Table5!F40","v":10.675503484842009}]
["Local: less than 2 months",{"$f":"SUM('[1]Aberdeen City:West Lothian'!B24)","v":2159},{"$f":"B24/B23","v":0.64621370847051784},{"$f":"[1]Table5!D40","v":6.6010057566333638}]
["Local: more than 2 months",{"$f":"SUM('[1]Aberdeen City:West Lothian'!B25)","v":1182},{"$f":"B25/B23","v":0.35378629152948221},{"$f":"[1]Table5!E40","v":18.117839013778102}]
[]
["Householder developments",{"$f":"SUM('[1]Aberdeen City:West Lothian'!B27)","v":3455},null,{"$f":"[1]Table6!F40","v":7.2122389911101932}]
["Local: less than 2 months",{"$f":"SUM('[1]Aberdeen City:West Lothian'!B28)","v":2969},{"$f":"B28/B27","v":0.85933429811866857},{"$f":"[1]Table6!D40","v":6.376028484819324}]
["Local: more than 2 months",{"$f":"SUM('[1]Aberdeen City:West Lothian'!B29)","v":486},{"$f":"B29/B27","v":0.1406657018813314},{"$f":"[1]Table6!E40","v":12.320693709582599}]
[]
["Housing Developments - Major",{"$f":"SUM('[1]Aberdeen City:West Lothian'!B31)","v":24},null,{"$f":"[1]Table7!C40","v":34.642857142857146}]
[]
["Housing Developments - Local",{"$f":"SUM('[1]Aberdeen City:West Lothian'!B33)","v":1221},null,{"$f":"[1]Table8!F40","v":12.04364104364104}]
["Local: less than 2 months",{"$f":"SUM('[1]Aberdeen City:West Lothian'!B34)","v":690},{"$f":"B34/B33","v":0.56511056511056512},{"$f":"[1]Table8!D40","v":6.7888198757763982}]
["Local: more than 2 months",{"$f":"SUM('[1]Aberdeen City:West Lothian'!B35)","v":531},{"$f":"B35/B33","v":0.43488943488943488},{"$f":"[1]Table8!E40","v":18.871939736346508}]
[]
["Business & Industry - Major",{"$f":"SUM('[1]Aberdeen City:West Lothian'!B37)","v":8},null,{"$f":"[1]Table9!C40","v":24.357142857142858}]
[]
["Business & Industry - Local",{"$f":"SUM('[1]Aberdeen City:West Lothian'!B39)","v":399},null,{"$f":"[1]Table10!F40","v":8.5717866093805934}]
["Local: less than 2 months",{"$f":"SUM('[1]Aberdeen City:West Lothian'!B40)","v":303},{"$f":"B40/B39","v":0.75939849624060152},{"$f":"[1]Table10!D40","v":6.5780292314945763}]
["Local: more than 2 months",{"$f":"SUM('[1]Aberdeen City:West Lothian'!B41)","v":96},{"$f":"B41/B39","v":0.24060150375939848},{"$f":"[1]Table10!E40","v":14.864583333333334}]
[]
["Other developments - Major",{"$f":"SUM('[1]Aberdeen City:West Lothian'!B43)","v":17},null,{"$f":"[1]Table11!C40","v":34.478991596638657}]
[]
["Other developments - Local",{"$f":"SUM('[1]Aberdeen City:West Lothian'!B45)","v":1517},null,{"$f":"[1]Table12!F40","v":9.4964685940295706}]
["Local: less than 2 months",{"$f":"SUM('[1]Aberdeen City:West Lothian'!B46)","v":1057},{"$f":"B46/B45","v":0.69676994067237974},{"$f":"[1]Table12!D40","v":6.4815515610217593}]
["Local: more than 2 months",{"$f":"SUM('[1]Aberdeen City:West Lothian'!B47)","v":460},{"$f":"B47/B45","v":0.30323005932762032},{"$f":"[1]Table12!E40","v":16.424223602484474}]
[]
["EIA Developments",{"$f":"SUM('[1]Aberdeen City:West Lothian'!B49)","v":2},null,{"$f":"[1]Table13!C40","v":16.928571428571431}]
["Other Consents",{"$f":"SUM('[1]Aberdeen City:West Lothian'!B50)","v":1880},null,{"$f":"[1]Table14!C40","v":7.5939209726443755}]
[]
["Decision Making: Applications subject to"]
["Planning/Legal Agreements",{"$f":"SUM('[1]Aberdeen City:West Lothian'!B53)","v":98},null,{"$f":"'[1]Table15 '!C40","v":35.049562682215743}]
["Local Reviews",{"$f":"SUM('[1]Aberdeen City:West Lothian'!B54)","v":154},null,{"$f":"[1]Table16!D40","v":12.424860853432282}]
[]
["Decision Making: Local Reviews and Appeals"]
[]
[null,"Total number of decisions","Original decision upheld (%)"]
["Local Reviews",{"$f":"SUM('[1]Aberdeen City:West Lothian'!B59)","v":154},{"$f":"[1]Table16!C40","v":0.66233766233766234}]
["Appeals to Scottish Ministers3",{"$f":"SUM('[1]Aberdeen City:West Lothian'!B60)","v":70},{"$f":"[1]Table17!C40","v":0.60004285714285721}]
[]
["Enforcement Activity"]
[]
[null,"Number"]
["Cases Taken Up",{"$f":"[1]Table18!B40","v":1476}]
["Notices Served",{"$f":"[1]Table18!C40","v":181}]
["Reports to Procurator Fiscal",{"$f":"[1]Table18!D40","v":1}]
["Prosecutions",{"$f":"[1]Table18!E40","v":0}]
[]
["Approved and Delegated"]
[]
["Percentage Approved",{"$f":"#REF!/#REF!","v":{"$error":"#REF!"}}]
["Percentage Delegated",{"$f":"#REF!/#REF!","v":{"$error":"#REF!"}}]
[]
["1. For a full description of the categories in this analysis please see NOTES page."]
["2. Time has been removed from the decision time for a total of 413 applications where delays were outwith the control of 28 local authorities. Other local authorities either indicated that they were not able to provide details of dates for delays that were outwith their control or did not require any decision time to be removed from any of their applications. Average decision times for those local authorities who are not able to provide details for delays may be higher than otherwise, and higher than those authorities who are able to report delays in decision making. "]
[]
[]
[]
["3. Cases where the decision was recalled and made by Ministers are not included in these figures."]

{"sheet":"Aberdeen City","index":8,"n_rows":77,"n_cols":6,"rows_kept":77,"cut":false,"hidden":false,"merged":[[61,0,61,3],[76,0,77,3],[79,0,80,3]]}
["Planning Authority Performance Statistics1,3",null,null,"Aberdeen City"]
[null,null,null,"2018/19 Q1"]
[null,null,null,"All Applications excluding Legacy Cases",null,"Back to contents"]
[]
["Processing Agreements","Total Number of Decisions","% Within Agreed Timescales"]
["TOTAL",58,0.98275862068965514]
["Major Applications",1,0]
["Local Applications",44,1]
["EIA  Applications",1,1]
["Other Applications",12,1]
["Applications with processing agreements are not included in the following figures."]
[null,"Total Number of Decisions","Proportion of Decisions","Average Time (Weeks)"]
["All Major Developments",3,null,21.523809523809522]
["Without Legal Agreement",1,0.33333333333333331,41.428571428571431]
["With Legal Agreement",2,0.66666666666666663,11.571428571428571]
[]
["All Local Developments",183,null,6.4527712724434041]
["Without Legal Agreement",183,1,6.4527712724434041]
["With Legal Agreement",0,0,"-"]
["Local: less than 2 months",164,0.89617486338797814,6.0235191637630665]
["Local: more than 2 months",19,0.10382513661202186,10.157894736842106]
[]
["All Local developments (non-householder)",70,null,6.4489795918367347]
["Local: less than 2 months",62,0.88571428571428568,5.67741935483871]
["Local: more than 2 months",8,0.11428571428571428,12.428571428571429]
[]
["Householder developments",113,null,6.4551201011378003]
["Local: less than 2 months",102,0.90265486725663713,6.2338935574229692]
["Local: more than 2 months",11,9.7345132743362831E-2,8.5064935064935074]
[]
["Housing Developments - Major",2,null,24.928571428571427]
[]
["Housing Developments - Local",9,null,6.0476190476190483]
["Local: less than 2 months",8,0.88888888888888884,5.7321428571428568]
["Local: more than 2 months",1,0.1111111111111111,8.5714285714285712]
[]
["Business & Industry - Major",0,null,"-"]
[]
["Business & Industry - Local",14,null,6.5510204081632653]
["Local: less than 2 months",13,0.9285714285714286,6.3956043956043951]
["Local: more than 2 months",1,7.1428571428571425E-2,8.5714285714285712]
[]
["Other developments - Major",1,null,14.714285714285714]
[]
["Other developments - Local",41,null,6.0069686411149821]
["Local: less than 2 months",38,0.92682926829268297,5.3571428571428568]
["Local: more than 2 months",3,7.3170731707317069E-2,14.238095238095239]
[]
["EIA Developments",0,null,"-"]
["Other Consents",77,null,6.8311688311688314]
[]
["Decision Making: Applications subject to"]
["Planning/Legal Agreements",3,null,9.3809523809523814]
["Local Reviews",3,null,5.7619047619047619]
[]
["Decision Making: Local Reviews and Appeals"]
[]
[null,"Total number of decisions","Original decision upheld (%)"]
["Local Reviews",3,0.66666666666666663]
["Appeals to Scottish Ministers2",5,0.6]
[]
["Enforcement Activity"]
[]
[null,"Number"]
["Cases Taken Up",36]
["Notices Served",4]
["Reports to Procurator Fiscal",0]
["Prosecutions",0]
["Number of breaches resolved",22]
["Approved and Delegated"]
[]
["Percentage Approved",0.90759075907590758]
["Percentage Delegated",0.9470404984423676]
[]
["1. For a full description of the categories in this analysis please see NOTES page."]
["2. Cases where the decision was recalled and made by Ministers are not included in these figures."]
["3. Time has been removed from the decision time for 8 applications where delays were outwith the control of the local authority."]

{"sheet":"Aberdeenshire","index":9,"n_rows":77,"n_cols":6,"rows_kept":77,"cut":false,"hidden":false,"merged":[[61,0,61,3],[2,5,2,6],[76,0,77,3]]}
["Planning Authority Performance Statistics1,3",null,null,"Aberdeenshire"]
[null,null,null,"2018/19 Q1"]
[null,null,null,"All Applications excluding Legacy Cases"]
[null,null,null,null,null,"Back to contents"]
["Processing Agreements","Total Number of Decisions","% Within Agreed Timescales"]
["TOTAL",118,0.88983050847457623]
["Major Applications",2,1]
["Local Applications",111,0.88288288288288286]
["EIA  Applications",0,"-"]
["Other Applications",5,1]
["Applications with processing agreements are not included in the following figures."]
[null,"Total Number of Decisions","Proportion of Decisions","Average Time (Weeks)"]
["All Major Developments",1,null,9]
["Without Legal Agreement",1,1,9]
["With Legal Agreement",0,0,"-"]
[]
["All Local Developments",459,null,9.5178960473078131]
["Without Legal Agreement",436,0.94989106753812635,8.7015072083879428]
["With Legal Agreement",23,5.0108932461873638E-2,24.993788819875778]
["Local: less than 2 months",379,0.82570806100217864,7.2476441764040711]
["Local: more than 2 months",80,0.17429193899782136,20.273214285714285]
[]
["All Local developments (non-householder)",261,null,11.322933771209634]
["Local: less than 2 months",187,0.71647509578544066,7.5156608097784572]
["Local: more than 2 months",74,0.28352490421455939,20.944015444015442]
[]
["Householder developments",198,null,7.1385281385281383]
["Local: less than 2 months",192,0.96969696969696972,6.9866071428571432]
["Local: more than 2 months",6,3.0303030303030304E-2,12]
[]
["Housing Developments - Major",0,null,"-"]
[]
["Housing Developments - Local",122,null,14.555035128805622]
["Local: less than 2 months",68,0.55737704918032782,7.6113445378151265]
["Local: more than 2 months",54,0.44262295081967212,23.298941798941797]
[]
["Business & Industry - Major",0,null,"-"]
[]
["Business & Industry - Local",26,null,7.6428571428571432]
["Local: less than 2 months",23,0.88461538461538458,7.4161490683229809]
["Local: more than 2 months",3,0.11538461538461539,9.3809523809523814]
[]
["Other developments - Major",1,null,9]
[]
["Other developments - Local",91,null,8.3108320251177386]
["Local: less than 2 months",76,0.8351648351648352,7.3571428571428568]
["Local: more than 2 months",15,0.16483516483516483,13.142857142857142]
[]
["EIA Developments",0,null,"-"]
["Other Consents",53,null,6.7681940700808623]
[]
["Decision Making: Applications subject to"]
["Planning/Legal Agreements",23,null,24.993788819875778]
["Local Reviews",8,null,12.357142857142858]
[]
["Decision Making: Local Reviews and Appeals"]
[]
[null,"Total number of decisions","Original decision upheld (%)"]
["Local Reviews",8,1]
["Appeals to Scottish Ministers2",9,0.66700000000000004]
[]
["Enforcement Activity"]
[]
[null,"Number"]
["Cases Taken Up",114]
["Notices Served",5]
["Reports to Procurator Fiscal",0]
["Prosecutions",0]
["Number of breaches resolved",116]
["Approved and Delegated"]
[]
["Percentage Approved",0.92868719611021067]
["Percentage Delegated",0.87797147385103014]
[]
["1. For a full description of the categories in this analysis please see NOTES page."]
["2. Cases where the decision was recalled and made by Ministers are not included in these figures."]
["3. Time has been removed from the decision time for 7 applications where delays were outwith the control of the local authority."]

{"sheet":"Angus","index":10,"n_rows":77,"n_cols":6,"rows_kept":77,"cut":false,"hidden":false,"merged":[[61,0,61,3]]}
["Planning Authority Performance Statistics1,3",null,null,"Angus"]
[null,null,null,"2018/19 Q1"]
[null,null,null,"All Applications excluding Legacy Cases",null,"Back to contents"]
[]
["Processing Agreements","Total Number of Decisions","% Within Agreed Timescales"]
["TOTAL",47,0.65957446808510634]
["Major Applications",0,"-"]
["Local Applications",40,0.65]
["EIA  Applications",0,"-"]
["Other Applications",7,0.7142857142857143]
["Applications with processing agreements are not included in the following figures."]
[null,"Total Number of Decisions","Proportion of Decisions","Average Time (Weeks)"]
["All Major Developments",0,null,"-"]
["Without Legal Agreement",0,"-","-"]
["With Legal Agreement",0,"-","-"]
[]
["All Local Developments",131,null,6.6106870229007635]
["Without Legal Agreement",131,1,6.6106870229007635]
["With Legal Agreement",0,0,"-"]
["Local: less than 2 months",112,0.85496183206106868,5.9451530612244898]
["Local: more than 2 months",19,0.14503816793893129,10.533834586466167]
[]
["All Local developments (non-householder)",58,null,8.0270935960591139]
["Local: less than 2 months",40,0.68965517241379315,6.9214285714285717]
["Local: more than 2 months",18,0.31034482758620691,10.484126984126984]
[]
["Householder developments",73,null,5.4853228962818008]
["Local: less than 2 months",72,0.98630136986301364,5.4027777777777777]
["Local: more than 2 months",1,1.3698630136986301E-2,11.428571428571429]
[]
["Housing Developments - Major",0,null,"-"]
[]
["Housing Developments - Local",18,null,7.8015873015873023]
["Local: less than 2 months",12,0.66666666666666663,6.8333333333333339]
["Local: more than 2 months",6,0.33333333333333331,9.738095238095239]
[]
["Business & Industry - Major",0,null,"-"]
[]
["Business & Industry - Local",16,null,8.7053571428571423]
["Local: less than 2 months",10,0.625,7.3999999999999995]
["Local: more than 2 months",6,0.375,10.880952380952381]
[]
["Other developments - Major",0,null,"-"]
[]
["Other developments - Local",22,null,7.7337662337662332]
["Local: less than 2 months",17,0.77272727272727271,6.73109243697479]
["Local: more than 2 months",5,0.22727272727272727,11.142857142857142]
[]
["EIA Developments",0,null,"-"]
["Other Consents",29,null,7.0344827586206895]
[]
["Decision Making: Applications subject to"]
["Planning/Legal Agreements",0,null,"-"]
["Local Reviews",4,null,13.821428571428571]
[]
["Decision Making: Local Reviews and Appeals"]
[]
[null,"Total number of decisions","Original decision upheld (%)"]
["Local Reviews",4,1]
["Appeals to Scottish Ministers2",0]
[]
["Enforcement Activity"]
[]
[null,"Number"]
["Cases Taken Up",36]
["Notices Served",14]
["Reports to Procurator Fiscal",0]
["Prosecutions",0]
["Number of breaches resolved",24]
["Approved and Delegated"]
[]
["Percentage Approved",0.97524752475247523]
["Percentage Delegated",0.97101449275362317]
[]
["1. For a full description of the categories in this analysis please see NOTES page."]
["2. Cases where the decision was recalled and made by Ministers are not included in these figures."]
["3. Time has not been removed from the decision time for any applications."]

{"sheet":"Argyll and Bute","index":11,"n_rows":77,"n_cols":6,"rows_kept":77,"cut":false,"hidden":false,"merged":[[76,0,77,3],[61,0,61,3]]}
["Planning Authority Performance Statistics1,3",null,null,"Argyll and Bute"]
[null,null,null,"2018/19 Q1"]
[null,null,null,"All Applications excluding Legacy Cases",null,"Back to contents"]
[]
["Processing Agreements","Total Number of Decisions","% Within Agreed Timescales"]
["TOTAL",0,"-"]
["Major Applications",0,"-"]
["Local Applications",0,"-"]
["EIA  Applications",0,"-"]
["Other Applications",0,"-"]
["Applications with processing agreements are not included in the following figures."]
[null,"Total Number of Decisions","Proportion of Decisions","Average Time (Weeks)"]
["All Major Developments",0,null,"-"]
["Without Legal Agreement",0,"-","-"]
["With Legal Agreement",0,"-","-"]
[]
["All Local Developments",271,null,10.0305745914602]
["Without Legal Agreement",269,0.99261992619926198,9.9787573021773763]
["With Legal Agreement",2,7.3800738007380072E-3,17]
["Local: less than 2 months",171,0.63099630996309963,6.442773600668338]
["Local: more than 2 months",100,0.36900369003690037,16.165714285714284]
[]
["All Local developments (non-householder)",179,null,11.571428571428571]
["Local: less than 2 months",98,0.54748603351955305,6.7128279883381925]
["Local: more than 2 months",81,0.45251396648044695,17.449735449735449]
[]
["Householder developments",92,null,7.0326086956521738]
["Local: less than 2 months",73,0.79347826086956519,6.0802348336594907]
["Local: more than 2 months",19,0.20652173913043478,10.69172932330827]
[]
["Housing Developments - Major",0,null,"-"]
[]
["Housing Developments - Local",94,null,11.474164133738601]
["Local: less than 2 months",46,0.48936170212765956,6.8229813664596275]
["Local: more than 2 months",48,0.51063829787234039,15.931547619047619]
[]
["Business & Industry - Major",0,null,"-"]
[]
["Business & Industry - Local",8,null,11.857142857142858]
["Local: less than 2 months",5,0.625,6.3714285714285719]
["Local: more than 2 months",3,0.375,21]
[]
["Other developments - Major",0,null,"-"]
[]
["Other developments - Local",63,null,10.811791383219955]
["Local: less than 2 months",44,0.69841269841269837,6.6428571428571432]
["Local: more than 2 months",19,0.30158730158730157,20.466165413533837]
[]
["EIA Developments",0,null,"-"]
["Other Consents",75,null,6.746666666666667]
[]
["Decision Making: Applications subject to"]
["Planning/Legal Agreements",2,null,17]
["Local Reviews",5,null,9.8571428571428577]
[]
["Decision Making: Local Reviews and Appeals"]
[]
[null,"Total number of decisions","Original decision upheld (%)"]
["Local Reviews",5,0.8]
["Appeals to Scottish Ministers2",1,1]
[]
["Enforcement Activity"]
[]
[null,"Number"]
["Cases Taken Up",36]
["Notices Served",9]
["Reports to Procurator Fiscal",0]
["Prosecutions",0]
["Number of breaches resolved",17]
["Approved and Delegated"]
[]
["Percentage Approved",0.97515527950310554]
["Percentage Delegated",0.97109826589595372]
[]
["1. For a full description of the categories in this analysis please see NOTES page."]
["2. Cases where the decision was recalled and made by Ministers are not included in these figures."]
["3. Time has been removed from the decision time for 14 applications where delays were outwith the control of the local authority."]

{"sheet":"Cairngorms National Park","index":12,"n_rows":77,"n_cols":6,"rows_kept":77,"cut":false,"hidden":false,"merged":[[61,0,61,3]]}
["Planning Authority Performance Statistics1,3",null,null,"Cairngorms National Park"]
[null,null,null,"2018/19 Q1"]
[null,null,null,"All Applications excluding Legacy Cases",null,"Back to contents"]
[]
["Processing Agreements","Total Number of Decisions","% Within Agreed Timescales"]
["TOTAL",5,0.6]
["Major Applications",0,"-"]
["Local Applications",4,0.75]
["EIA  Applications",0,"-"]
["Other Applications",1,0]
["Applications with processing agreements are not included in the following figures."]
[null,"Total Number of Decisions","Proportion of Decisions","Average Time (Weeks)"]
["All Major Developments",0,null,"-"]
["Without Legal Agreement",0,"-","-"]
["With Legal Agreement",0,"-","-"]
[]
["All Local Developments",1,null,29.285714285714285]
["Without Legal Agreement",1,1,29.285714285714285]
["With Legal Agreement",0,0,"-"]
["Local: less than 2 months",0,0,"-"]
["Local: more than 2 months",1,1,29.285714285714285]
[]
["All Local developments (non-householder)",1,null,29.285714285714285]
["Local: less than 2 months",0,0,"-"]
["Local: more than 2 months",1,1,29.285714285714285]
[]
["Householder developments",0,null,"-"]
["Local: less than 2 months",0,"-","-"]
["Local: more than 2 months",0,"-","-"]
[]
["Housing Developments - Major",0,null,"-"]
[]
["Housing Developments - Local",0,null,"-"]
["Local: less than 2 months",0,"-","-"]
["Local: more than 2 months",0,"-","-"]
[]
["Business & Industry - Major",0,null,"-"]
[]
["Business & Industry - Local",1,null,29.285714285714285]
["Local: less than 2 months",0,0,"-"]
["Local: more than 2 months",1,1,29.285714285714285]
[]
["Other developments - Major",0,null,"-"]
[]
["Other developments - Local",0,null,"-"]
["Local: less than 2 months",0,"-","-"]
["Local: more than 2 months",0,"-","-"]
[]
["EIA Developments",0,null,"-"]
["Other Consents",0,null,"-"]
[]
["Decision Making: Applications subject to"]
["Planning/Legal Agreements",0,null,"-"]
["Local Reviews",0,null,"-"]
[]
["Decision Making: Local Reviews and Appeals"]
[]
[null,"Total number of decisions","Original decision upheld (%)"]
["Local Reviews",0,"-"]
["Appeals to Scottish Ministers2",0]
[]
["Enforcement Activity"]
[]
[null,"Number"]
["Cases Taken Up",26]
["Notices Served",0]
["Reports to Procurator Fiscal",0]
["Prosecutions",0]
["Number of breaches resolved",15]
["Approved and Delegated"]
[]
["Percentage Approved",0.66666666666666663]
["Percentage Delegated",0]
[]
["1. For a full description of the categories in this analysis please see NOTES page."]
["2. Cases where the decision was recalled and made by Ministers are not included in these figures."]
["3. Time has not been removed from the decision time for any applications."]

{"sheet":"Clackmannanshire","index":13,"n_rows":77,"n_cols":6,"rows_kept":77,"cut":false,"hidden":false,"merged":[[61,0,61,3],[76,0,77,3]]}
["Planning Authority Performance Statistics1,3",null,null,"Clackmannanshire"]
[null,null,null,"2018/19 Q1"]
[null,null,null,"All Applications excluding Legacy Cases",null,"Back to contents"]
[]
["Processing Agreements","Total Number of Decisions","% Within Agreed Timescales"]
["TOTAL",0,"-"]
["Major Applications",0,"-"]
["Local Applications",0,"-"]
["EIA  Applications",0,"-"]
["Other Applications",0,"-"]
["Applications with processing agreements are not included in the following figures."]
[null,"Total Number of Decisions","Proportion of Decisions","Average Time (Weeks)"]
["All Major Developments",0,null,"-"]
["Without Legal Agreement",0,"-","-"]
["With Legal Agreement",0,"-","-"]
[]
["All Local Developments",56,null,5.7933673469387754]
["Without Legal Agreement",56,1,5.7933673469387754]
["With Legal Agreement",0,0,"-"]
["Local: less than 2 months",54,0.9642857142857143,5.052910052910053]
["Local: more than 2 months",2,3.5714285714285712E-2,25.785714285714285]
[]
["All Local developments (non-householder)",18,null,7.8492063492063489]
["Local: less than 2 months",16,0.88888888888888884,5.6071428571428568]
["Local: more than 2 months",2,0.1111111111111111,25.785714285714285]
[]
["Householder developments",38,null,4.8195488721804507]
["Local: less than 2 months",38,1,4.8195488721804507]
["Local: more than 2 months",0,0,"-"]
[]
["Housing Developments - Major",0,null,"-"]
[]
["Housing Developments - Local",6,null,7.1428571428571432]
["Local: less than 2 months",5,0.83333333333333337,5.8857142857142861]
["Local: more than 2 months",1,0.16666666666666666,13.428571428571429]
[]
["Business & Industry - Major",0,null,"-"]
[]
["Business & Industry - Local",7,null,10.244897959183673]
["Local: less than 2 months",6,0.8571428571428571,5.5952380952380949]
["Local: more than 2 months",1,0.14285714285714285,38.142857142857146]
[]
["Other developments - Major",0,null,"-"]
[]
["Other developments - Local",5,null,5.3428571428571425]
["Local: less than 2 months",5,1,5.3428571428571425]
["Local: more than 2 months",0,0,"-"]
[]
["EIA Developments",0,null,"-"]
["Other Consents",13,null,5.0439560439560438]
[]
["Decision Making: Applications subject to"]
["Planning/Legal Agreements",0,null,"-"]
["Local Reviews",0,null,"-"]
[]
["Decision Making: Local Reviews and Appeals"]
[]
[null,"Total number of decisions","Original decision upheld (%)"]
["Local Reviews",0,"-"]
["Appeals to Scottish Ministers2",0]
[]
["Enforcement Activity"]
[]
[null,"Number"]
["Cases Taken Up",17]
["Notices Served",1]
["Reports to Procurator Fiscal",0]
["Prosecutions",0]
["Number of breaches resolved",17]
["Approved and Delegated"]
[]
["Percentage Approved",0.97058823529411764]
["Percentage Delegated",0.94202898550724634]
[]
["1. For a full description of the categories in this analysis please see NOTES page."]
["2. Cases where the decision was recalled and made by Ministers are not included in these figures."]
["3. Time has been removed from the decision time for 9 applications where delays were outwith the control of the local authority."]

{"sheet":"Dumfries and Galloway","index":14,"n_rows":77,"n_cols":6,"rows_kept":77,"cut":false,"hidden":false,"merged":[[61,0,61,3],[76,0,77,3]]}
["Planning Authority Performance Statistics1,3",null,null,"Dumfries and Galloway"]
[null,null,null,"2018/19 Q1"]
[null,null,null,"All Applications excluding Legacy Cases",null,"Back to contents"]
[]
["Processing Agreements","Total Number of Decisions","% Within Agreed Timescales"]
["TOTAL",8,0.625]
["Major Applications",1,0]
["Local Applications",5,0.6]
["EIA  Applications",0,"-"]
["Other Applications",2,1]
["Applications with processing agreements are not included in the following figures."]
[null,"Total Number of Decisions","Proportion of Decisions","Average Time (Weeks)"]
["All Major Developments",3,null,82.238095238095227]
["Without Legal Agreement",0,0,"-"]
["With Legal Agreement",3,1,82.238095238095227]
[]
["All Local Developments",288,null,9.9379960317460334]
["Without Legal Agreement",287,0.99652777777777779,9.9392732702837225]
["With Legal Agreement",1,3.472222222222222E-3,9.5714285714285712]
["Local: less than 2 months",189,0.65625,5.6772486772486772]
["Local: more than 2 months",99,0.34375,18.072150072150073]
[]
["All Local developments (non-householder)",185,null,12.451737451737452]
["Local: less than 2 months",86,0.46486486486486489,5.9817275747508303]
["Local: more than 2 months",99,0.53513513513513511,18.072150072150073]
[]
["Householder developments",103,null,5.4230235783633844]
["Local: less than 2 months",103,1,5.4230235783633844]
["Local: more than 2 months",0,0,"-"]
[]
["Housing Developments - Major",0,null,"-"]
[]
["Housing Developments - Local",64,null,14.017857142857142]
["Local: less than 2 months",13,0.203125,6.6593406593406588]
["Local: more than 2 months",51,0.796875,15.893557422969186]
[]
["Business & Industry - Major",1,null,67.142857142857139]
[]
["Business & Industry - Local",0,null,"-"]
["Local: less than 2 months",0,"-","-"]
["Local: more than 2 months",0,"-","-"]
[]
["Other developments - Major",2,null,89.785714285714292]
[]
["Other developments - Local",110,null,9.2441558441558431]
["Local: less than 2 months",72,0.65454545454545454,5.8531746031746028]
["Local: more than 2 months",38,0.34545454545454546,15.669172932330827]
[]
["EIA Developments",1,null,10.857142857142858]
["Other Consents",54,null,8.6666666666666661]
[]
["Decision Making: Applications subject to"]
["Planning/Legal Agreements",4,null,64.071428571428569]
["Local Reviews",1,null,11.571428571428571]
[]
["Decision Making: Local Reviews and Appeals"]
[]
[null,"Total number of decisions","Original decision upheld (%)"]
["Local Reviews",1,0]
["Appeals to Scottish Ministers2",0]
[]
["Enforcement Activity"]
[]
[null,"Number"]
["Cases Taken Up",36]
["Notices Served",1]
["Reports to Procurator Fiscal",0]
["Prosecutions",0]
["Number of breaches resolved",41]
["Approved and Delegated"]
[]
["Percentage Approved",0.94586894586894588]
["Percentage Delegated",0.9463276836158192]
[]
["1. For a full description of the categories in this analysis please see NOTES page."]
["2. Cases where the decision was recalled and made by Ministers are not included in these figures."]
["3. Time has been removed from the decision time for 18 applications where delays were outwith the control of the local authority."]

{"sheet":"Dundee","index":15,"n_rows":77,"n_cols":6,"rows_kept":77,"cut":false,"hidden":false,"merged":[[61,0,61,3],[76,0,77,3]]}
["Planning Authority Performance Statistics1,3",null,null,"Dundee City"]
[null,null,null,"2018/19 Q1"]
[null,null,null,"All Applications excluding Legacy Cases",null,"Back to contents"]
[]
["Processing Agreements","Total Number of Decisions","% Within Agreed Timescales"]
["TOTAL",0,"-"]
["Major Applications",0,"-"]
["Local Applications",0,"-"]
["EIA  Applications",0,"-"]
["Other Applications",0,"-"]
["Applications with processing agreements are not included in the following figures."]
[null,"Total Number of Decisions","Proportion of Decisions","Average Time (Weeks)"]
["All Major Developments",1,null,16.714285714285715]
["Without Legal Agreement",0,0,"-"]
["With Legal Agreement",1,1,16.714285714285715]
[]
["All Local Developments",122,null,8.6615925058548005]
["Without Legal Agreement",119,0.97540983606557374,8.6950780312124856]
["With Legal Agreement",3,2.4590163934426229E-2,7.3333333333333339]
["Local: less than 2 months",98,0.80327868852459017,7.0947521865889209]
["Local: more than 2 months",24,0.19672131147540983,15.05952380952381]
[]
["All Local developments (non-householder)",69,null,9.8447204968944106]
["Local: less than 2 months",53,0.76811594202898548,7.3369272237196768]
["Local: more than 2 months",16,0.2318840579710145,18.151785714285715]
[]
["Householder developments",53,null,7.1212938005390836]
["Local: less than 2 months",45,0.84905660377358494,6.8095238095238093]
["Local: more than 2 months",8,0.15094339622641509,8.875]
[]
["Housing Developments - Major",1,null,16.714285714285715]
[]
["Housing Developments - Local",23,null,10.795031055900621]
["Local: less than 2 months",16,0.69565217391304346,7.5357142857142856]
["Local: more than 2 months",7,0.30434782608695654,18.244897959183671]
[]
["Business & Industry - Major",0,null,"-"]
[]
["Business & Industry - Local",2,null,7.5714285714285712]
["Local: less than 2 months",2,1,7.5714285714285712]
["Local: more than 2 months",0,0,"-"]
[]
["Other developments - Major",0,null,"-"]
[]
["Other developments - Local",43,null,9.4352159468438543]
["Local: less than 2 months",35,0.81395348837209303,7.2326530612244895]
["Local: more than 2 months",8,0.18604651162790697,19.071428571428573]
[]
["EIA Developments",0,null,"-"]
["Other Consents",52,null,6.9670329670329663]
[]
["Decision Making: Applications subject to"]
["Planning/Legal Agreements",4,null,9.6785714285714288]
["Local Reviews",0,null,"-"]
[]
["Decision Making: Local Reviews and Appeals"]
[]
[null,"Total number of decisions","Original decision upheld (%)"]
["Local Reviews",0,"-"]
["Appeals to Scottish Ministers2",0]
[]
["Enforcement Activity"]
[]
[null,"Number"]
["Cases Taken Up",36]
["Notices Served",0]
["Reports to Procurator Fiscal",0]
["Prosecutions",0]
["Number of breaches resolved",5]
["Approved and Delegated"]
[]
["Percentage Approved",0.91719745222929938]
["Percentage Delegated",0.97714285714285709]
[]
["1. For a full description of the categories in this analysis please see NOTES page."]
["2. Cases where the decision was recalled and made by Ministers are not included in these figures."]
["3. Time has been removed from the decision time for 10 applications where delays were outwith the control of the local authority."]

{"sheet":"East Ayrshire","index":16,"n_rows":77,"n_cols":6,"rows_kept":77,"cut":false,"hidden":false,"merged":[[61,0,61,3],[76,0,77,3]]}
["Planning Authority Performance Statistics1,3",null,null,"East Ayrshire"]
[null,null,null,"2018/19 Q1"]
[null,null,null,"All Applications excluding Legacy Cases",null,"Back to contents"]
[]
["Processing Agreements","Total Number of Decisions","% Within Agreed Timescales"]
["TOTAL",5,0.6]
["Major Applications",0,"-"]
["Local Applications",4,0.5]
["EIA  Applications",1,1]
["Other Applications",0,"-"]
["Applications with processing agreements are not included in the following figures."]
[null,"Total Number of Decisions","Proportion of Decisions","Average Time (Weeks)"]
["All Major Developments",4,null,17.821428571428573]
["Without Legal Agreement",2,0.5,9.9285714285714288]
["With Legal Agreement",2,0.5,25.714285714285715]
[]
["All Local Developments",126,null,10.04875283446712]
["Without Legal Agreement",126,1,10.04875283446712]
["With Legal Agreement",0,0,"-"]
["Local: less than 2 months",107,0.84920634920634919,7.1708945260347132]
["Local: more than 2 months",19,0.15079365079365079,26.255639097744361]
[]
["All Local developments (non-householder)",70,null,11.651020408163266]
["Local: less than 2 months",54,0.77142857142857146,7.1904761904761907]
["Local: more than 2 months",16,0.22857142857142856,26.705357142857142]
[]
["Householder developments",56,null,8.045918367346939]
["Local: less than 2 months",53,0.9464285714285714,7.1509433962264151]
["Local: more than 2 months",3,5.3571428571428568E-2,23.857142857142858]
[]
["Housing Developments - Major",2,null,9.9285714285714288]
[]
["Housing Developments - Local",31,null,9.9861751152073737]
["Local: less than 2 months",21,0.67741935483870963,7.1564625850340136]
["Local: more than 2 months",10,0.32258064516129031,15.928571428571429]
[]
["Business & Industry - Major",0,null,"-"]
[]
["Business & Industry - Local",12,null,7.3928571428571432]
["Local: less than 2 months",11,0.91666666666666663,7.1298701298701292]
["Local: more than 2 months",1,8.3333333333333329E-2,10.285714285714286]
[]
["Other developments - Major",1,null,21.428571428571427]
[]
["Other developments - Local",24,null,9.0654761904761916]
["Local: less than 2 months",20,0.83333333333333337,7.2571428571428571]
["Local: more than 2 months",4,0.16666666666666666,18.107142857142858]
[]
["EIA Developments",0,null,"-"]
["Other Consents",20,null,6.2642857142857142]
[]
["Decision Making: Applications subject to"]
["Planning/Legal Agreements",2,null,25.714285714285715]
["Local Reviews",2,null,6.2857142857142856]
[]
["Decision Making: Local Reviews and Appeals"]
[]
[null,"Total number of decisions","Original decision upheld (%)"]
["Local Reviews",2,0]
["Appeals to Scottish Ministers2",2,0]
[]
["Enforcement Activity"]
[]
[null,"Number"]
["Cases Taken Up",42]
["Notices Served",6]
["Reports to Procurator Fiscal",0]
["Prosecutions",0]
["Number of breaches resolved",29]
["Approved and Delegated"]
[]
["Percentage Approved",0.90789473684210531]
["Percentage Delegated",0.91666666666666663]
[]
["1. For a full description of the categories in this analysis please see NOTES page."]
["2. Cases where the decision was recalled and made by Ministers are not included in these figures."]
["3. Time has been removed from the decision time for 24 applications where delays were outwith the control of the local authority."]

{"sheet":"East Dunbartonshire","index":17,"n_rows":77,"n_cols":6,"rows_kept":77,"cut":false,"hidden":false,"merged":[[76,0,77,3],[61,0,61,3]]}
["Planning Authority Performance Statistics1,3",null,null,"East Dunbartonshire"]
[null,null,null,"2018/19 Q1"]
[null,null,null,"All Applications excluding Legacy Cases",null,"Back to contents"]
[]
["Processing Agreements","Total Number of Decisions","% Within Agreed Timescales"]
["TOTAL",0,"-"]
["Major Applications",0,"-"]
["Local Applications",0,"-"]
["EIA  Applications",0,"-"]
["Other Applications",0,"-"]
["Applications with processing agreements are not included in the following figures."]
[null,"Total Number of Decisions","Proportion of Decisions","Average Time (Weeks)"]
["All Major Developments",1,null,34]
["Without Legal Agreement",0,0,"-"]
["With Legal Agreement",1,1,34]
[]
["All Local Developments",172,null,10.016611295681063]
["Without Legal Agreement",168,0.97674418604651159,7.949829931972789]
["With Legal Agreement",4,2.3255813953488372E-2,96.821428571428569]
["Local: less than 2 months",145,0.84302325581395354,7.4137931034482758]
["Local: more than 2 months",27,0.15697674418604651,23.994708994708994]
[]
["All Local developments (non-householder)",29,null,21.334975369458128]
["Local: less than 2 months",21,0.72413793103448276,8.1564625850340136]
["Local: more than 2 months",8,0.27586206896551724,55.928571428571431]
[]
["Householder developments",143,null,7.7212787212787211]
["Local: less than 2 months",124,0.86713286713286708,7.2880184331797233]
["Local: more than 2 months",19,0.13286713286713286,10.548872180451127]
[]
["Housing Developments - Major",1,null,34]
[]
["Housing Developments - Local",13,null,11.241758241758243]
["Local: less than 2 months",10,0.76923076923076927,8.2428571428571438]
["Local: more than 2 months",3,0.23076923076923078,21.238095238095237]
[]
["Business & Industry - Major",0,null,"-"]
[]
["Business & Industry - Local",1,null,8.1428571428571423]
["Local: less than 2 months",1,1,8.1428571428571423]
["Local: more than 2 months",0,0,"-"]
[]
["Other developments - Major",0,null,"-"]
[]
["Other developments - Local",15,null,30.961904761904758]
["Local: less than 2 months",10,0.66666666666666663,8.0714285714285712]
["Local: more than 2 months",5,0.33333333333333331,76.742857142857147]
[]
["EIA Developments",0,null,"-"]
["Other Consents",18,null,5.9761904761904763]
[]
["Decision Making: Applications subject to"]
["Planning/Legal Agreements",5,null,84.257142857142853]
["Local Reviews",0,null,"-"]
[]
["Decision Making: Local Reviews and Appeals"]
[]
[null,"Total number of decisions","Original decision upheld (%)"]
["Local Reviews",0,"-"]
["Appeals to Scottish Ministers2",0]
[]
["Enforcement Activity"]
[]
[null,"Number"]
["Cases Taken Up",38]
["Notices Served",0]
["Reports to Procurator Fiscal",0]
["Prosecutions",0]
["Number of breaches resolved",53]
["Approved and Delegated"]
[]
["Percentage Approved",0.95628415300546443]
["Percentage Delegated",0.96335078534031415]
[]
["1. For a full description of the categories in this analysis please see NOTES page."]
["2. Cases where the decision was recalled and made by Ministers are not included in these figures."]
["3. Time has been removed from the decision time for 46 applications where delays were outwith the control of the local authority."]

{"sheet":"East Lothian","index":18,"n_rows":77,"n_cols":6,"rows_kept":77,"cut":false,"hidden":false,"merged":[[76,0,77,3],[61,0,61,3]]}
["Planning Authority Performance Statistics1,3",null,null,"East Lothian"]
[null,null,null,"2018/19 Q1"]
[null,null,null,"All Applications excluding Legacy Cases",null,"Back to contents"]
[]
["Processing Agreements","Total Number of Decisions","% Within Agreed Timescales"]
["TOTAL",0,"-"]
["Major Applications",0,"-"]
["Local Applications",0,"-"]
["EIA  Applications",0,"-"]
["Other Applications",0,"-"]
["Applications with processing agreements are not included in the following figures."]
[null,"Total Number of Decisions","Proportion of Decisions","Average Time (Weeks)"]
["All Major Developments",3,null,61.619047619047613]
["Without Legal Agreement",1,0.33333333333333331,11.142857142857142]
["With Legal Agreement",2,0.66666666666666663,86.857142857142861]
[]
["All Local Developments",214,null,9.1154873164218966]
["Without Legal Agreement",213,0.99532710280373837,9.0918846411804157]
["With Legal Agreement",1,4.6728971962616819E-3,14.142857142857142]
["Local: less than 2 months",179,0.83644859813084116,7.3607342378292104]
["Local: more than 2 months",35,0.16355140186915887,18.089795918367347]
[]
["All Local developments (non-householder)",77,null,10.910946196660481]
["Local: less than 2 months",52,0.67532467532467533,6.8516483516483513]
["Local: more than 2 months",25,0.32467532467532467,19.354285714285712]
[]
["Householder developments",137,null,8.106360792492179]
["Local: less than 2 months",127,0.92700729927007297,7.5691788526434189]
["Local: more than 2 months",10,7.2992700729927001E-2,14.928571428571429]
[]
["Housing Developments - Major",1,null,44.285714285714285]
[]
["Housing Developments - Local",22,null,15.2012987012987]
["Local: less than 2 months",11,0.5,7.0129870129870131]
["Local: more than 2 months",11,0.5,23.38961038961039]
[]
["Business & Industry - Major",0,null,"-"]
[]
["Business & Industry - Local",8,null,10.035714285714286]
["Local: less than 2 months",7,0.875,7.3469387755102042]
["Local: more than 2 months",1,0.125,28.857142857142858]
[]
["Other developments - Major",2,null,70.285714285714292]
[]
["Other developments - Local",43,null,9.1495016611295679]
["Local: less than 2 months",31,0.72093023255813948,6.7281105990783407]
["Local: more than 2 months",12,0.27906976744186046,15.404761904761903]
[]
["EIA Developments",0,null,"-"]
["Other Consents",54,null,8.0132275132275144]
[]
["Decision Making: Applications subject to"]
["Planning/Legal Agreements",3,null,62.619047619047613]
["Local Reviews",3,null,7.5714285714285712]
[]
["Decision Making: Local Reviews and Appeals"]
[]
[null,"Total number of decisions","Original decision upheld (%)"]
["Local Reviews",3,0.66666666666666663]
["Appeals to Scottish Ministers2",1,1]
[]
["Enforcement Activity"]
[]
[null,"Number"]
["Cases Taken Up",83]
["Notices Served",16]
["Reports to Procurator Fiscal",0]
["Prosecutions",0]
["Number of breaches resolved",40]
["Approved and Delegated"]
[]
["Percentage Approved",0.9580152671755725]
["Percentage Delegated",0.97047970479704793]
[]
["1. For a full description of the categories in this analysis please see NOTES page."]
["2. Cases where the decision was recalled and made by Ministers are not included in these figures."]
["3. Time has been removed from the decision time for 28 applications where delays were outwith the control of the local authority."]

{"sheet":"East Renfrewshire","index":19,"n_rows":77,"n_cols":6,"rows_kept":77,"cut":false,"hidden":false,"merged":[[61,0,61,3],[76,0,77,3]]}
["Planning Authority Performance Statistics1,3",null,null,"East Renfrewshire"]
[null,null,null,"2018/19 Q1"]
[null,null,null,"All Applications excluding Legacy Cases",null,"Back to contents"]
[]
["Processing Agreements","Total Number of Decisions","% Within Agreed Timescales"]
["TOTAL",1,1]
["Major Applications",1,1]
["Local Applications",0,"-"]
["EIA  Applications",0,"-"]
["Other Applications",0,"-"]
["Applications with processing agreements are not included in the following figures."]
[null,"Total Number of Decisions","Proportion of Decisions","Average Time (Weeks)"]
["All Major Developments",0,null,"-"]
["Without Legal Agreement",0,"-","-"]
["With Legal Agreement",0,"-","-"]
[]
["All Local Developments",183,null,11.502732240437158]
["Without Legal Agreement",182,0.99453551912568305,11.485086342229199]
["With Legal Agreement",1,5.4644808743169399E-3,14.714285714285714]
["Local: less than 2 months",81,0.44262295081967212,6.5220458553791891]
["Local: more than 2 months",102,0.55737704918032782,15.457983193277311]
[]
["All Local developments (non-householder)",21,null,11.306122448979592]
["Local: less than 2 months",9,0.42857142857142855,6.6190476190476195]
["Local: more than 2 months",12,0.5714285714285714,14.821428571428571]
[]
["Householder developments",162,null,11.528218694885362]
["Local: less than 2 months",72,0.44444444444444442,6.5099206349206344]
["Local: more than 2 months",90,0.55555555555555558,15.542857142857143]
[]
["Housing Developments - Major",0,null,"-"]
[]
["Housing Developments - Local",4,null,10.642857142857142]
["Local: less than 2 months",1,0.25,8]
["Local: more than 2 months",3,0.75,11.523809523809524]
[]
["Business & Industry - Major",0,null,"-"]
[]
["Business & Industry - Local",0,null,"-"]
["Local: less than 2 months",0,"-","-"]
["Local: more than 2 months",0,"-","-"]
[]
["Other developments - Major",0,null,"-"]
[]
["Other developments - Local",17,null,11.46218487394958]
["Local: less than 2 months",8,0.47058823529411764,6.4464285714285712]
["Local: more than 2 months",9,0.52941176470588236,15.920634920634921]
[]
["EIA Developments",0,null,"-"]
["Other Consents",8,null,9.0357142857142865]
[]
["Decision Making: Applications subject to"]
["Planning/Legal Agreements",1,null,14.714285714285714]
["Local Reviews",3,null,13.476190476190476]
[]
["Decision Making: Local Reviews and Appeals"]
[]
[null,"Total number of decisions","Original decision upheld (%)"]
["Local Reviews",3,0.66666666666666663]
["Appeals to Scottish Ministers2",0]
[]
["Enforcement Activity"]
[]
[null,"Number"]
["Cases Taken Up",3]
["Notices Served",0]
["Reports to Procurator Fiscal",0]
["Prosecutions",0]
["Number of breaches resolved",9]
["Approved and Delegated"]
[]
["Percentage Approved",0.91005291005291]
["Percentage Delegated",0.99479166666666663]
[]
["1. For a full description of the categories in this analysis please see NOTES page."]
["2. Cases where the decision was recalled and made by Ministers are not included in these figures."]
["3. Time has been removed from the decision time for 1 application where delays were outwith the control of the local authority."]

{"sheet":"City of Edinburgh","index":20,"n_rows":77,"n_cols":6,"rows_kept":77,"cut":false,"hidden":false,"merged":[[61,0,61,3]]}
["Planning Authority Performance Statistics1,3",null,null,"City of Edinburgh"]
[null,null,null,"2018/19 Q1"]
[null,null,null,"All Applications excluding Legacy Cases",null,"Back to contents"]
[]
["Processing Agreements","Total Number of Decisions","% Within Agreed Timescales"]
["TOTAL",106,0.69811320754716977]
["Major Applications",4,0.5]
["Local Applications",71,0.676056338028169]
["EIA  Applications",0,"-"]
["Other Applications",31,0.77419354838709675]
["Applications with processing agreements are not included in the following figures."]
[null,"Total Number of Decisions","Proportion of Decisions","Average Time (Weeks)"]
["All Major Developments",1,null,33.714285714285715]
["Without Legal Agreement",0,0,"-"]
["With Legal Agreement",1,1,33.714285714285715]
[]
["All Local Developments",554,null,9.9755028365136678]
["Without Legal Agreement",546,0.98555956678700363,9.36603872318158]
["With Legal Agreement",8,1.444043321299639E-2,51.571428571428569]
["Local: less than 2 months",381,0.68772563176895307,6.8410198725159352]
["Local: more than 2 months",173,0.31227436823104693,16.878612716763005]
[]
["All Local developments (non-householder)",190,null,13.620300751879698]
["Local: less than 2 months",93,0.48947368421052634,6.7941628264208918]
["Local: more than 2 months",97,0.51052631578947372,20.164948453608247]
[]
["Householder developments",364,null,8.072998430141288]
["Local: less than 2 months",288,0.79120879120879117,6.8561507936507935]
["Local: more than 2 months",76,0.2087912087912088,12.684210526315789]
[]
["Housing Developments - Major",0,null,"-"]
[]
["Housing Developments - Local",51,null,18.798319327731093]
["Local: less than 2 months",16,0.31372549019607843,6.5714285714285712]
["Local: more than 2 months",35,0.68627450980392157,24.387755102040817]
[]
["Business & Industry - Major",1,null,33.714285714285715]
[]
["Business & Industry - Local",19,null,9.0601503759398501]
["Local: less than 2 months",13,0.68421052631578949,7.0329670329670337]
["Local: more than 2 months",6,0.31578947368421051,13.452380952380953]
[]
["Other developments - Major",0,null,"-"]
[]
["Other developments - Local",109,null,11.710353866317169]
["Local: less than 2 months",61,0.55963302752293576,6.7868852459016393]
["Local: more than 2 months",48,0.44036697247706424,17.967261904761905]
[]
["EIA Developments",0,null,"-"]
["Other Consents",374,null,9.1042780748663095]
[]
["Decision Making: Applications subject to"]
["Planning/Legal Agreements",9,null,49.587301587301582]
["Local Reviews",22,null,8.5909090909090899]
[]
["Decision Making: Local Reviews and Appeals"]
[]
[null,"Total number of decisions","Original decision upheld (%)"]
["Local Reviews",22,0.68181818181818177]
["Appeals to Scottish Ministers2",20,0.6]
[]
["Enforcement Activity"]
[]
[null,"Number"]
["Cases Taken Up",156]
["Notices Served",34]
["Reports to Procurator Fiscal",0]
["Prosecutions",0]
["Number of breaches resolved",74]
["Approved and Delegated"]
[]
["Percentage Approved",0.86602357984994638]
["Percentage Delegated",0.91884057971014488]
[]
["1. For a full description of the categories in this analysis please see NOTES page."]
["2. Cases where the decision was recalled and made by Ministers are not included in these figures."]
["3. Time has not been removed from the decision time for any applications."]

{"sheet":"Falkirk","index":21,"n_rows":77,"n_cols":6,"rows_kept":77,"cut":false,"hidden":false,"merged":[[76,0,77,3],[61,0,61,3]]}
["Planning Authority Performance Statistics1,3",null,null,"Falkirk"]
[null,null,null,"2018/19 Q1"]
[null,null,null,"All Applications excluding Legacy Cases",null,"Back to contents"]
[]
["Processing Agreements","Total Number of Decisions","% Within Agreed Timescales"]
["TOTAL",1,0]
["Major Applications",1,0]
["Local Applications",0,"-"]
["EIA  Applications",0,"-"]
["Other Applications",0,"-"]
["Applications with processing agreements are not included in the following figures."]
[null,"Total Number of Decisions","Proportion of Decisions","Average Time (Weeks)"]
["All Major Developments",4,null,17.892857142857142]
["Without Legal Agreement",3,0.75,10.952380952380953]
["With Legal Agreement",1,0.25,38.714285714285715]
[]
["All Local Developments",147,null,7.4752186588921274]
["Without Legal Agreement",147,1,7.4752186588921274]
["With Legal Agreement",0,0,"-"]
["Local: less than 2 months",126,0.8571428571428571,6.3061224489795924]
["Local: more than 2 months",21,0.14285714285714285,14.489795918367347]
[]
["All Local developments (non-householder)",67,null,9.1727078891257996]
["Local: less than 2 months",47,0.70149253731343286,6.8145896656534948]
["Local: more than 2 months",20,0.29850746268656714,14.714285714285714]
[]
["Householder developments",80,null,6.0535714285714288]
["Local: less than 2 months",79,0.98750000000000004,6.0036166365280286]
["Local: more than 2 months",1,1.2500000000000001E-2,10]
[]
["Housing Developments - Major",1,null,38.714285714285715]
[]
["Housing Developments - Local",10,null,12.257142857142856]
["Local: less than 2 months",5,0.5,7.2]
["Local: more than 2 months",5,0.5,17.314285714285713]
[]
["Business & Industry - Major",2,null,8.0714285714285712]
[]
["Business & Industry - Local",6,null,7.9523809523809517]
["Local: less than 2 months",4,0.66666666666666663,7.3928571428571432]
["Local: more than 2 months",2,0.33333333333333331,9.0714285714285712]
[]
["Other developments - Major",1,null,16.714285714285715]
[]
["Other developments - Local",48,null,8.1636904761904763]
["Local: less than 2 months",38,0.79166666666666663,6.7030075187969924]
["Local: more than 2 months",10,0.20833333333333334,13.714285714285714]
[]
["EIA Developments",0,null,"-"]
["Other Consents",26,null,6.9505494505494507]
[]
["Decision Making: Applications subject to"]
["Planning/Legal Agreements",1,null,38.714285714285715]
["Local Reviews",2,null,17.142857142857142]
[]
["Decision Making: Local Reviews and Appeals"]
[]
[null,"Total number of decisions","Original decision upheld (%)"]
["Local Reviews",2,1]
["Appeals to Scottish Ministers2",2,0.5]
[]
["Enforcement Activity"]
[]
[null,"Number"]
["Cases Taken Up",0]
["Notices Served",0]
["Reports to Procurator Fiscal",0]
["Prosecutions",0]
["Number of breaches resolved",4]
["Approved and Delegated"]
[]
["Percentage Approved",0.98285714285714287]
["Percentage Delegated",0.9550561797752809]
[]
["1. For a full description of the categories in this analysis please see NOTES page."]
["2. Cases where the decision was recalled and made by Ministers are not included in these figures."]
["3. Time has been removed from the decision time for 7 applications where delays were outwith the control of the local authority."]

{"sheet":"Fife","index":22,"n_rows":77,"n_cols":6,"rows_kept":77,"cut":false,"hidden":false,"merged":[[61,0,61,3],[76,0,77,3]]}
["Planning Authority Performance Statistics1,3",null,null,"Fife"]
[null,null,null,"2018/19 Q1"]
[null,null,null,"All Applications excluding Legacy Cases",null,"Back to contents"]
[]
["Processing Agreements","Total Number of Decisions","% Within Agreed Timescales"]
["TOTAL",118,0.48305084745762711]
["Major Applications",0,"-"]
["Local Applications",103,0.4854368932038835]
["EIA  Applications",0,"-"]
["Other Applications",15,0.46666666666666667]
["Applications with processing agreements are not included in the following figures."]
[null,"Total Number of Decisions","Proportion of Decisions","Average Time (Weeks)"]
["All Major Developments",5,null,31.714285714285715]
["Without Legal Agreement",2,0.4,27.5]
["With Legal Agreement",3,0.6,34.523809523809526]
[]
["All Local Developments",372,null,10.091781874039938]
["Without Legal Agreement",371,0.99731182795698925,10.030034655371582]
["With Legal Agreement",1,2.6881720430107529E-3,33]
["Local: less than 2 months",271,0.728494623655914,6.9873484449130201]
["Local: more than 2 months",101,0.271505376344086,18.421499292786422]
[]
["All Local developments (non-householder)",129,null,14.227021040974529]
["Local: less than 2 months",74,0.5736434108527132,7.281853281853282]
["Local: more than 2 months",55,0.4263565891472868,23.571428571428573]
[]
["Householder developments",243,null,7.8965314520870082]
["Local: less than 2 months",197,0.81069958847736623,6.8767222625090643]
["Local: more than 2 months",46,0.18930041152263374,12.263975155279502]
[]
["Housing Developments - Major",4,null,35.357142857142854]
[]
["Housing Developments - Local",21,null,21.632653061224488]
["Local: less than 2 months",5,0.23809523809523808,7.4285714285714288]
["Local: more than 2 months",16,0.76190476190476186,26.071428571428573]
[]
["Business & Industry - Major",0,null,"-"]
[]
["Business & Industry - Local",3,null,12.476190476190476]
["Local: less than 2 months",2,0.66666666666666663,6.7857142857142856]
["Local: more than 2 months",1,0.33333333333333331,23.857142857142858]
[]
["Other developments - Major",1,null,17.142857142857142]
[]
["Other developments - Local",102,null,11.644257703081234]
["Local: less than 2 months",67,0.65686274509803921,7.2857142857142856]
["Local: more than 2 months",35,0.34313725490196079,19.987755102040815]
[]
["EIA Developments",0,null,"-"]
["Other Consents",144,null,7.4801587301587302]
[]
["Decision Making: Applications subject to"]
["Planning/Legal Agreements",4,null,34.142857142857146]
["Local Reviews",3,null,14.476190476190476]
[]
["Decision Making: Local Reviews and Appeals"]
[]
[null,"Total number of decisions","Original decision upheld (%)"]
["Local Reviews",3,0.66666666666666663]
["Appeals to Scottish Ministers2",5,0.8]
[]
["Enforcement Activity"]
[]
[null,"Number"]
["Cases Taken Up",6]
["Notices Served",5]
["Reports to Procurator Fiscal",0]
["Prosecutions",0]
["Number of breaches resolved",66]
["Approved and Delegated"]
[]
["Percentage Approved",0.96245733788395904]
["Percentage Delegated",0.94209702660406891]
[]
["1. For a full description of the categories in this analysis please see NOTES page."]
["2. Cases where the decision was recalled and made by Ministers are not included in these figures."]
["3. Time has been removed from the decision time for 7 applications where delays were outwith the control of the local authority."]

{"sheet":"Glasgow City","index":23,"n_rows":77,"n_cols":6,"rows_kept":77,"cut":false,"hidden":false,"merged":[[61,0,61,3],[76,0,77,3]]}
["Planning Authority Performance Statistics1,3",null,null,"Glasgow City"]
[null,null,null,"2018/19 Q1"]
[null,null,null,"All Applications excluding Legacy Cases",null,"Back to contents"]
[]
["Processing Agreements","Total Number of Decisions","% Within Agreed Timescales"]
["TOTAL",35,0.42857142857142855]
["Major Applications",1,1]
["Local Applications",21,0.47619047619047616]
["EIA  Applications",0,"-"]
["Other Applications",13,0.30769230769230771]
["Applications with processing agreements are not included in the following figures."]
[null,"Total Number of Decisions","Proportion of Decisions","Average Time (Weeks)"]
["All Major Developments",7,null,22.673469387755102]
["Without Legal Agreement",1,0.14285714285714285,17.142857142857142]
["With Legal Agreement",6,0.8571428571428571,23.595238095238095]
[]
["All Local Developments",358,null,9.2102952913008789]
["Without Legal Agreement",347,0.96927374301675973,8.8526142445450802]
["With Legal Agreement",11,3.0726256983240222E-2,20.493506493506494]
["Local: less than 2 months",270,0.75418994413407825,6.7788359788359784]
["Local: more than 2 months",88,0.24581005586592178,16.670454545454543]
[]
["All Local developments (non-householder)",196,null,11.156705539358601]
["Local: less than 2 months",115,0.58673469387755106,6.8459627329192543]
["Local: more than 2 months",81,0.41326530612244899,17.276895943562611]
[]
["Householder developments",162,null,6.8553791887125213]
["Local: less than 2 months",155,0.95679012345679015,6.7290322580645157]
["Local: more than 2 months",7,4.3209876543209874E-2,9.6530612244897949]
[]
["Housing Developments - Major",3,null,24.714285714285715]
[]
["Housing Developments - Local",31,null,12.046082949308756]
["Local: less than 2 months",17,0.54838709677419351,6.9495798319327733]
["Local: more than 2 months",14,0.45161290322580644,18.23469387755102]
[]
["Business & Industry - Major",1,null,32.285714285714285]
[]
["Business & Industry - Local",27,null,10.888888888888889]
["Local: less than 2 months",15,0.55555555555555558,7]
["Local: more than 2 months",12,0.44444444444444442,15.75]
[]
["Other developments - Major",3,null,17.428571428571427]
[]
["Other developments - Local",127,null,10.692913385826772]
["Local: less than 2 months",75,0.59055118110236215,6.843809523809524]
["Local: more than 2 months",52,0.40944881889763779,16.244505494505496]
[]
["EIA Developments",0,null,"-"]
["Other Consents",193,null,8.2790525536639539]
[]
["Decision Making: Applications subject to"]
["Planning/Legal Agreements",17,null,21.588235294117649]
["Local Reviews",15,null,13.123809523809523]
[]
["Decision Making: Local Reviews and Appeals"]
[]
[null,"Total number of decisions","Original decision upheld (%)"]
["Local Reviews",15,0.6]
["Appeals to Scottish Ministers2",3,0.66700000000000004]
[]
["Enforcement Activity"]
[]
[null,"Number"]
["Cases Taken Up",187]
["Notices Served",14]
["Reports to Procurator Fiscal",0]
["Prosecutions",0]
["Number of breaches resolved",115]
["Approved and Delegated"]
[]
["Percentage Approved",0.89930555555555558]
["Percentage Delegated",0.97807757166947729]
[]
["1. For a full description of the categories in this analysis please see NOTES page."]
["2. Cases where the decision was recalled and made by Ministers are not included in these figures."]
["3. Time has been removed from the decision time for 74 applications where delays were outwith the control of the local authority."]

{"sheet":"Highland","index":24,"n_rows":77,"n_cols":6,"rows_kept":77,"cut":false,"hidden":false,"merged":[[61,0,61,3],[76,0,77,3]]}
["Planning Authority Performance Statistics1,3",null,null,"Highland"]
[null,null,null,"2018/19 Q1"]
[null,null,null,"All Applications excluding Legacy Cases",null,"Back to contents"]
[]
["Processing Agreements","Total Number of Decisions","% Within Agreed Timescales"]
["TOTAL",8,0.75]
["Major Applications",4,1]
["Local Applications",4,0.5]
["EIA  Applications",0,"-"]
["Other Applications",0,"-"]
["Applications with processing agreements are not included in the following figures."]
[null,"Total Number of Decisions","Proportion of Decisions","Average Time (Weeks)"]
["All Major Developments",3,null,17.19047619047619]
["Without Legal Agreement",3,1,17.19047619047619]
["With Legal Agreement",0,0,"-"]
[]
["All Local Developments",671,null,8.7747498403236115]
["Without Legal Agreement",669,0.99701937406855434,8.7027546444586807]
["With Legal Agreement",2,2.9806259314456036E-3,32.857142857142854]
["Local: less than 2 months",504,0.75111773472429211,6.3327664399092978]
["Local: more than 2 months",167,0.24888226527570789,16.144568006843457]
[]
["All Local developments (non-householder)",466,null,9.9417535254445131]
["Local: less than 2 months",307,0.65879828326180256,6.6789204281060961]
["Local: more than 2 months",159,0.34120171673819744,16.241689128481582]
[]
["Householder developments",205,null,6.1219512195121952]
["Local: less than 2 months",197,0.96097560975609753,5.7933284989122553]
["Local: more than 2 months",8,3.9024390243902439E-2,14.214285714285714]
[]
["Housing Developments - Major",0,null,"-"]
[]
["Housing Developments - Local",245,null,10.785422740524782]
["Local: less than 2 months",154,0.62857142857142856,6.9888682745825603]
["Local: more than 2 months",91,0.37142857142857144,17.210361067503925]
[]
["Business & Industry - Major",0,null,"-"]
[]
["Business & Industry - Local",55,null,8.9974025974025977]
["Local: less than 2 months",37,0.67272727272727273,6.7490347490347489]
["Local: more than 2 months",18,0.32727272727272727,13.619047619047619]
[]
["Other developments - Major",1,null,17.142857142857142]
[]
["Other developments - Local",137,null,8.0448383733055273]
["Local: less than 2 months",99,0.72262773722627738,6.2554112554112553]
["Local: more than 2 months",38,0.27737226277372262,12.706766917293233]
[]
["EIA Developments",0,null,"-"]
["Other Consents",64,null,7.8459821428571432]
[]
["Decision Making: Applications subject to"]
["Planning/Legal Agreements",2,null,32.857142857142854]
["Local Reviews",10,null,6.9571428571428573]
[]
["Decision Making: Local Reviews and Appeals"]
[]
[null,"Total number of decisions","Original decision upheld (%)"]
["Local Reviews",10,0.6]
["Appeals to Scottish Ministers2",8,0.5]
[]
["Enforcement Activity"]
[]
[null,"Number"]
["Cases Taken Up",86]
["Notices Served",15]
["Reports to Procurator Fiscal",0]
["Prosecutions",0]
["Number of breaches resolved",180]
["Approved and Delegated"]
[]
["Percentage Approved",0.95940460081190804]
["Percentage Delegated",0.95710455764075064]
[]
["1. For a full description of the categories in this analysis please see NOTES page."]
["2. Cases where the decision was recalled and made by Ministers are not included in these figures."]
["3. Time has been removed from the decision time for 53 applications where delays were outwith the control of the local authority."]

{"sheet":"Inverclyde","index":25,"n_rows":77,"n_cols":6,"rows_kept":77,"cut":false,"hidden":false,"merged":[[61,0,61,3],[76,0,77,3]]}
["Planning Authority Performance Statistics1,3",null,null,"Inverclyde"]
[null,null,null,"2018/19 Q1"]
[null,null,null,"All Applications excluding Legacy Cases",null,"Back to contents"]
[]
["Processing Agreements","Total Number of Decisions","% Within Agreed Timescales"]
["TOTAL",0,"-"]
["Major Applications",0,"-"]
["Local Applications",0,"-"]
["EIA  Applications",0,"-"]
["Other Applications",0,"-"]
["Applications with processing agreements are not included in the following figures."]
[null,"Total Number of Decisions","Proportion of Decisions","Average Time (Weeks)"]
["All Major Developments",1,null,15.285714285714286]
["Without Legal Agreement",1,1,15.285714285714286]
["With Legal Agreement",0,0,"-"]
[]
["All Local Developments",76,null,8.4229323308270683]
["Without Legal Agreement",76,1,8.4229323308270683]
["With Legal Agreement",0,0,"-"]
["Local: less than 2 months",63,0.82894736842105265,6.7755102040816331]
["Local: more than 2 months",13,0.17105263157894737,16.406593406593405]
[]
["All Local developments (non-householder)",38,null,9.9097744360902258]
["Local: less than 2 months",27,0.71052631578947367,6.9629629629629628]
["Local: more than 2 months",11,0.28947368421052633,17.142857142857142]
[]
["Householder developments",38,null,6.9360902255639099]
["Local: less than 2 months",36,0.94736842105263153,6.6349206349206344]
["Local: more than 2 months",2,5.2631578947368418E-2,12.357142857142858]
[]
["Housing Developments - Major",0,null,"-"]
[]
["Housing Developments - Local",13,null,15.318681318681318]
["Local: less than 2 months",4,0.30769230769230771,7.75]
["Local: more than 2 months",9,0.69230769230769229,18.68253968253968]
[]
["Business & Industry - Major",0,null,"-"]
[]
["Business & Industry - Local",0,null,"-"]
["Local: less than 2 months",0,"-","-"]
["Local: more than 2 months",0,"-","-"]
[]
["Other developments - Major",1,null,15.285714285714286]
[]
["Other developments - Local",25,null,7.097142857142857]
["Local: less than 2 months",23,0.92,6.8260869565217392]
["Local: more than 2 months",2,0.08,10.214285714285714]
[]
["EIA Developments",0,null,"-"]
["Other Consents",14,null,7.8469387755102042]
[]
["Decision Making: Applications subject to"]
["Planning/Legal Agreements",0,null,"-"]
["Local Reviews",4,null,13.214285714285714]
[]
["Decision Making: Local Reviews and Appeals"]
[]
[null,"Total number of decisions","Original decision upheld (%)"]
["Local Reviews",4,0.5]
["Appeals to Scottish Ministers2",0]
[]
["Enforcement Activity"]
[]
[null,"Number"]
["Cases Taken Up",2]
["Notices Served",2]
["Reports to Procurator Fiscal",0]
["Prosecutions",0]
["Number of breaches resolved",1]
["Approved and Delegated"]
[]
["Percentage Approved",0.96666666666666667]
["Percentage Delegated",0.97802197802197799]
[]
["1. For a full description of the categories in this analysis please see NOTES page."]
["2. Cases where the decision was recalled and made by Ministers are not included in these figures."]
["3. Time has been removed from the decision time for 7 applications where delays were outwith the control of the local authority."]

{"sheet":"Loch Lomond","index":26,"n_rows":77,"n_cols":6,"rows_kept":77,"cut":false,"hidden":false,"merged":[[61,0,61,3],[76,0,77,3]]}
["Planning Authority Performance Statistics1,3",null,null,"Loch Lomond and The Trossachs"]
[null,null,null,"2018/19 Q1"]
[null,null,null,"All Applications excluding Legacy Cases",null,"Back to contents"]
[]
["Processing Agreements","Total Number of Decisions","% Within Agreed Timescales"]
["TOTAL",0,"-"]
["Major Applications",0,"-"]
["Local Applications",0,"-"]
["EIA  Applications",0,"-"]
["Other Applications",0,"-"]
["Applications with processing agreements are not included in the following figures."]
[null,"Total Number of Decisions","Proportion of Decisions","Average Time (Weeks)"]
["All Major Developments",0,null,"-"]
["Without Legal Agreement",0,"-","-"]
["With Legal Agreement",0,"-","-"]
[]
["All Local Developments",44,null,10.990259740259742]
["Without Legal Agreement",44,1,10.990259740259742]
["With Legal Agreement",0,0,"-"]
["Local: less than 2 months",25,0.56818181818181823,7.3771428571428572]
["Local: more than 2 months",19,0.43181818181818182,15.744360902255639]
[]
["All Local developments (non-householder)",32,null,12.125]
["Local: less than 2 months",15,0.46875,7.1714285714285717]
["Local: more than 2 months",17,0.53125,16.495798319327729]
[]
["Householder developments",12,null,7.9642857142857144]
["Local: less than 2 months",10,0.83333333333333337,7.6857142857142851]
["Local: more than 2 months",2,0.16666666666666666,9.3571428571428577]
[]
["Housing Developments - Major",0,null,"-"]
[]
["Housing Developments - Local",4,null,22.071428571428573]
["Local: less than 2 months",1,0.25,4.2857142857142856]
["Local: more than 2 months",3,0.75,28]
[]
["Business & Industry - Major",0,null,"-"]
[]
["Business & Industry - Local",10,null,8.0571428571428569]
["Local: less than 2 months",8,0.8,7.6785714285714288]
["Local: more than 2 months",2,0.2,9.5714285714285712]
[]
["Other developments - Major",0,null,"-"]
[]
["Other developments - Local",14,null,11.795918367346939]
["Local: less than 2 months",6,0.42857142857142855,6.9761904761904763]
["Local: more than 2 months",8,0.5714285714285714,15.410714285714286]
[]
["EIA Developments",0,null,"-"]
["Other Consents",12,null,5.9404761904761907]
[]
["Decision Making: Applications subject to"]
["Planning/Legal Agreements",0,null,"-"]
["Local Reviews",1,null,8.8571428571428577]
[]
["Decision Making: Local Reviews and Appeals"]
[]
[null,"Total number of decisions","Original decision upheld (%)"]
["Local Reviews",1,0]
["Appeals to Scottish Ministers2",0]
[]
["Enforcement Activity"]
[]
[null,"Number"]
["Cases Taken Up",19]
["Notices Served",0]
["Reports to Procurator Fiscal",0]
["Prosecutions",0]
["Number of breaches resolved",13]
["Approved and Delegated"]
[]
["Percentage Approved",0.96078431372549022]
["Percentage Delegated",1]
[]
["1. For a full description of the categories in this analysis please see NOTES page."]
["2. Cases where the decision was recalled and made by Ministers are not included in these figures."]
["3. Time has been removed from the decision time for 6 applications where delays were outwith the control of the local authority."]

{"sheet":"Midlothian","index":27,"n_rows":77,"n_cols":6,"rows_kept":77,"cut":false,"hidden":false,"merged":[[61,0,61,3],[76,0,77,3]]}
["Planning Authority Performance Statistics1,3",null,null,"Midlothian"]
[null,null,null,"2018/19 Q1"]
[null,null,null,"All Applications excluding Legacy Cases",null,"Back to contents"]
[]
["Processing Agreements","Total Number of Decisions","% Within Agreed Timescales"]
["TOTAL",0,"-"]
["Major Applications",0,"-"]
["Local Applications",0,"-"]
["EIA  Applications",0,"-"]
["Other Applications",0,"-"]
["Applications with processing agreements are not included in the following figures."]
[null,"Total Number of Decisions","Proportion of Decisions","Average Time (Weeks)"]
["All Major Developments",1,null,79.142857142857139]
["Without Legal Agreement",1,1,79.142857142857139]
["With Legal Agreement",0,0,"-"]
[]
["All Local Developments",109,null,10.545216251638269]
["Without Legal Agreement",106,0.97247706422018354,9.2345013477088962]
["With Legal Agreement",3,2.7522935779816515E-2,56.857142857142854]
["Local: less than 2 months",86,0.78899082568807344,6.2906976744186043]
["Local: more than 2 months",23,0.21100917431192662,26.453416149068321]
[]
["All Local developments (non-householder)",50,null,15.771428571428572]
["Local: less than 2 months",28,0.56000000000000005,7.0816326530612246]
["Local: more than 2 months",22,0.44,26.831168831168831]
[]
["Householder developments",59,null,6.1162227602905563]
["Local: less than 2 months",58,0.98305084745762716,5.9088669950738915]
["Local: more than 2 months",1,1.6949152542372881E-2,18.142857142857142]
[]
["Housing Developments - Major",1,null,79.142857142857139]
[]
["Housing Developments - Local",19,null,18.360902255639097]
["Local: less than 2 months",10,0.52631578947368418,7.7]
["Local: more than 2 months",9,0.47368421052631576,30.206349206349209]
[]
["Business & Industry - Major",0,null,"-"]
[]
["Business & Industry - Local",2,null,5.6428571428571432]
["Local: less than 2 months",2,1,5.6428571428571432]
["Local: more than 2 months",0,0,"-"]
[]
["Other developments - Major",0,null,"-"]
[]
["Other developments - Local",29,null,14.773399014778324]
["Local: less than 2 months",16,0.55172413793103448,6.875]
["Local: more than 2 months",13,0.44827586206896552,24.494505494505493]
[]
["EIA Developments",1,null,23]
["Other Consents",20,null,11.278571428571428]
[]
["Decision Making: Applications subject to"]
["Planning/Legal Agreements",3,null,56.857142857142854]
["Local Reviews",12,null,19.88095238095238]
[]
["Decision Making: Local Reviews and Appeals"]
[]
[null,"Total number of decisions","Original decision upheld (%)"]
["Local Reviews",12,0.41666666666666669]
["Appeals to Scottish Ministers2",1,0]
[]
["Enforcement Activity"]
[]
[null,"Number"]
["Cases Taken Up",37]
["Notices Served",7]
["Reports to Procurator Fiscal",0]
["Prosecutions",0]
["Number of breaches resolved",38]
["Approved and Delegated"]
[]
["Percentage Approved",0.86399999999999999]
["Percentage Delegated",0.94656488549618323]
[]
["1. For a full description of the categories in this analysis please see NOTES page."]
["2. Cases where the decision was recalled and made by Ministers are not included in these figures."]
["3. Time has been removed from the decision time for 14 applications where delays were outwith the control of the local authority."]

{"sheet":"Moray","index":28,"n_rows":77,"n_cols":6,"rows_kept":77,"cut":false,"hidden":false,"merged":[[76,0,77,3],[61,0,61,3]]}
["Planning Authority Performance Statistics1,3",null,null,"Moray"]
[null,null,null,"2018/19 Q1"]
[null,null,null,"All Applications excluding Legacy Cases",null,"Back to contents"]
[]
["Processing Agreements","Total Number of Decisions","% Within Agreed Timescales"]
["TOTAL",8,0.125]
["Major Applications",3,0]
["Local Applications",4,0.25]
["EIA  Applications",1,0]
["Other Applications",0,"-"]
["Applications with processing agreements are not included in the following figures."]
[null,"Total Number of Decisions","Proportion of Decisions","Average Time (Weeks)"]
["All Major Developments",0,null,"-"]
["Without Legal Agreement",0,"-","-"]
["With Legal Agreement",0,"-","-"]
[]
["All Local Developments",157,null,6.077343039126478]
["Without Legal Agreement",156,0.99363057324840764,6.0934065934065931]
["With Legal Agreement",1,6.369426751592357E-3,3.5714285714285716]
["Local: less than 2 months",152,0.96815286624203822,5.9680451127819554]
["Local: more than 2 months",5,3.1847133757961783E-2,9.4]
[]
["All Local developments (non-householder)",114,null,6.4611528822055133]
["Local: less than 2 months",109,0.95614035087719296,6.3263433813892522]
["Local: more than 2 months",5,4.3859649122807015E-2,9.4]
[]
["Householder developments",43,null,5.059800664451827]
["Local: less than 2 months",43,1,5.059800664451827]
["Local: more than 2 months",0,0,"-"]
[]
["Housing Developments - Major",0,null,"-"]
[]
["Housing Developments - Local",49,null,6.4868804664723028]
["Local: less than 2 months",47,0.95918367346938771,6.3738601823708203]
["Local: more than 2 months",2,4.0816326530612242E-2,9.1428571428571423]
[]
["Business & Industry - Major",0,null,"-"]
[]
["Business & Industry - Local",42,null,6.4455782312925169]
["Local: less than 2 months",40,0.95238095238095233,6.3285714285714283]
["Local: more than 2 months",2,4.7619047619047616E-2,8.7857142857142865]
[]
["Other developments - Major",0,null,"-"]
[]
["Other developments - Local",12,null,5.8571428571428568]
["Local: less than 2 months",12,1,5.8571428571428568]
["Local: more than 2 months",0,0,"-"]
[]
["EIA Developments",0,null,"-"]
["Other Consents",26,null,6.2252747252747254]
[]
["Decision Making: Applications subject to"]
["Planning/Legal Agreements",1,null,3.5714285714285716]
["Local Reviews",5,null,9.1142857142857139]
[]
["Decision Making: Local Reviews and Appeals"]
[]
[null,"Total number of decisions","Original decision upheld (%)"]
["Local Reviews",5,0.8]
["Appeals to Scottish Ministers2",0]
[]
["Enforcement Activity"]
[]
[null,"Number"]
["Cases Taken Up",84]
["Notices Served",1]
["Reports to Procurator Fiscal",0]
["Prosecutions",0]
["Number of breaches resolved",93]
["Approved and Delegated"]
[]
["Percentage Approved",0.93617021276595747]
["Percentage Delegated",0.96335078534031415]
[]
["1. For a full description of the categories in this analysis please see NOTES page."]
["2. Cases where the decision was recalled and made by Ministers are not included in these figures."]
["3. Time has been removed from the decision time for 48 applications where delays were outwith the control of the local authority."]

{"sheet":"Na h-Eileanan Siar","index":29,"n_rows":77,"n_cols":6,"rows_kept":77,"cut":false,"hidden":false,"merged":[[76,0,77,3],[61,0,61,3]]}
["Planning Authority Performance Statistics1,3",null,null,"Na h-Eileanan Siar"]
[null,null,null,"2018/19 Q1"]
[null,null,null,"All Applications excluding Legacy Cases",null,"Back to contents"]
[]
["Processing Agreements","Total Number of Decisions","% Within Agreed Timescales"]
["TOTAL",0,"-"]
["Major Applications",0,"-"]
["Local Applications",0,"-"]
["EIA  Applications",0,"-"]
["Other Applications",0,"-"]
["Applications with processing agreements are not included in the following figures."]
[null,"Total Number of Decisions","Proportion of Decisions","Average Time (Weeks)"]
["All Major Developments",0,null,"-"]
["Without Legal Agreement",0,"-","-"]
["With Legal Agreement",0,"-","-"]
[]
["All Local Developments",82,null,6.8344947735191637]
["Without Legal Agreement",82,1,6.8344947735191637]
["With Legal Agreement",0,0,"-"]
["Local: less than 2 months",65,0.79268292682926833,5.5472527472527471]
["Local: more than 2 months",17,0.2073170731707317,11.756302521008404]
[]
["All Local developments (non-householder)",64,null,7.4017857142857144]
["Local: less than 2 months",47,0.734375,5.8267477203647422]
["Local: more than 2 months",17,0.265625,11.756302521008404]
[]
["Householder developments",18,null,4.8174603174603172]
["Local: less than 2 months",18,1,4.8174603174603172]
["Local: more than 2 months",0,0,"-"]
[]
["Housing Developments - Major",0,null,"-"]
[]
["Housing Developments - Local",31,null,7.064516129032258]
["Local: less than 2 months",22,0.70967741935483875,5.7922077922077921]
["Local: more than 2 months",9,0.29032258064516131,10.174603174603176]
[]
["Business & Industry - Major",0,null,"-"]
[]
["Business & Industry - Local",2,null,6.2142857142857144]
["Local: less than 2 months",2,1,6.2142857142857144]
["Local: more than 2 months",0,0,"-"]
[]
["Other developments - Major",0,null,"-"]
[]
["Other developments - Local",25,null,7.1428571428571432]
["Local: less than 2 months",20,0.8,6.0857142857142863]
["Local: more than 2 months",5,0.2,11.37142857142857]
[]
["EIA Developments",0,null,"-"]
["Other Consents",24,null,5.2976190476190483]
[]
["Decision Making: Applications subject to"]
["Planning/Legal Agreements",0,null,"-"]
["Local Reviews",0,null,"-"]
[]
["Decision Making: Local Reviews and Appeals"]
[]
[null,"Total number of decisions","Original decision upheld (%)"]
["Local Reviews",0,"-"]
["Appeals to Scottish Ministers2",0]
[]
["Enforcement Activity"]
[]
[null,"Number"]
["Cases Taken Up",2]
["Notices Served",2]
["Reports to Procurator Fiscal",0]
["Prosecutions",0]
["Number of breaches resolved",0]
["Approved and Delegated"]
[]
["Percentage Approved",1]
["Percentage Delegated",0.98113207547169812]
[]
["1. For a full description of the categories in this analysis please see NOTES page."]
["2. Cases where the decision was recalled and made by Ministers are not included in these figures."]
["3. Time has been removed from the decision time for 1 application where delays were outwith the control of the local authority."]

{"sheet":"North Ayrshire","index":30,"n_rows":77,"n_cols":6,"rows_kept":77,"cut":false,"hidden":false,"merged":[[61,0,61,3],[76,0,77,3]]}
["Planning Authority Performance Statistics1,3",null,null,"North Ayrshire"]
[null,null,null,"2018/19 Q1"]
[null,null,null,"All Applications excluding Legacy Cases",null,"Back to contents"]
[]
["Processing Agreements","Total Number of Decisions","% Within Agreed Timescales"]
["TOTAL",0,"-"]
["Major Applications",0,"-"]
["Local Applications",0,"-"]
["EIA  Applications",0,"-"]
["Other Applications",0,"-"]
["Applications with processing agreements are not included in the following figures."]
[null,"Total Number of Decisions","Proportion of Decisions","Average Time (Weeks)"]
["All Major Developments",2,null,4.9285714285714288]
["Without Legal Agreement",2,1,4.9285714285714288]
["With Legal Agreement",0,0,"-"]
[]
["All Local Developments",143,null,4.8311688311688314]
["Without Legal Agreement",143,1,4.8311688311688314]
["With Legal Agreement",0,0,"-"]
["Local: less than 2 months",139,0.97202797202797198,4.7081192189105865]
["Local: more than 2 months",4,2.7972027972027972E-2,9.1071428571428577]
[]
["All Local developments (non-householder)",72,null,5.5515873015873023]
["Local: less than 2 months",68,0.94444444444444442,5.3424369747899165]
["Local: more than 2 months",4,5.5555555555555552E-2,9.1071428571428577]
[]
["Householder developments",71,null,4.1006036217303823]
["Local: less than 2 months",71,1,4.1006036217303823]
["Local: more than 2 months",0,0,"-"]
[]
["Housing Developments - Major",2,null,4.9285714285714288]
[]
["Housing Developments - Local",26,null,6.1373626373626369]
["Local: less than 2 months",25,0.96153846153846156,6.0342857142857147]
["Local: more than 2 months",1,3.8461538461538464E-2,8.7142857142857135]
[]
["Business & Industry - Major",0,null,"-"]
[]
["Business & Industry - Local",5,null,7.8]
["Local: less than 2 months",2,0.4,5.6428571428571432]
["Local: more than 2 months",3,0.6,9.238095238095239]
[]
["Other developments - Major",0,null,"-"]
[]
["Other developments - Local",38,null,4.8421052631578947]
["Local: less than 2 months",38,1,4.8421052631578947]
["Local: more than 2 months",0,0,"-"]
[]
["EIA Developments",0,null,"-"]
["Other Consents",27,null,3.8518518518518516]
[]
["Decision Making: Applications subject to"]
["Planning/Legal Agreements",0,null,"-"]
["Local Reviews",2,null,4.4285714285714288]
[]
["Decision Making: Local Reviews and Appeals"]
[]
[null,"Total number of decisions","Original decision upheld (%)"]
["Local Reviews",2,0.5]
["Appeals to Scottish Ministers2",0]
[]
["Enforcement Activity"]
[]
[null,"Number"]
["Cases Taken Up",23]
["Notices Served",4]
["Reports to Procurator Fiscal",0]
["Prosecutions",0]
["Number of breaches resolved",46]
["Approved and Delegated"]
[]
["Percentage Approved",0.96875]
["Percentage Delegated",0.95348837209302328]
[]
["1. For a full description of the categories in this analysis please see NOTES page."]
["2. Cases where the decision was recalled and made by Ministers are not included in these figures."]
["3. Time has been removed from the decision time for 4 applications where delays were outwith the control of the local authority."]

{"sheet":"North Lanarkshire","index":31,"n_rows":77,"n_cols":6,"rows_kept":77,"cut":false,"hidden":false,"merged":[[61,0,61,3],[76,0,77,3]]}
["Planning Authority Performance Statistics1,3",null,null,"North Lanarkshire"]
[null,null,null,"2018/19 Q1"]
[null,null,null,"All Applications excluding Legacy Cases",null,"Back to contents"]
[]
["Processing Agreements","Total Number of Decisions","% Within Agreed Timescales"]
["TOTAL",25,0.8]
["Major Applications",3,0.66666666666666663]
["Local Applications",19,0.84210526315789469]
["EIA  Applications",0,"-"]
["Other Applications",3,0.66666666666666663]
["Applications with processing agreements are not included in the following figures."]
[null,"Total Number of Decisions","Proportion of Decisions","Average Time (Weeks)"]
["All Major Developments",3,null,8.4285714285714288]
["Without Legal Agreement",3,1,8.4285714285714288]
["With Legal Agreement",0,0,"-"]
[]
["All Local Developments",181,null,7.3141278610891876]
["Without Legal Agreement",180,0.99447513812154698,7.2753968253968253]
["With Legal Agreement",1,5.5248618784530384E-3,14.285714285714286]
["Local: less than 2 months",158,0.8729281767955801,5.9457504520795661]
["Local: more than 2 months",23,0.1270718232044199,16.714285714285715]
[]
["All Local developments (non-householder)",70,null,9.5306122448979576]
["Local: less than 2 months",52,0.74285714285714288,6.4835164835164836]
["Local: more than 2 months",18,0.25714285714285712,18.333333333333336]
[]
["Householder developments",111,null,5.9163449163449169]
["Local: less than 2 months",106,0.95495495495495497,5.6819407008086253]
["Local: more than 2 months",5,4.5045045045045043E-2,10.885714285714286]
[]
["Housing Developments - Major",2,null,7.0714285714285712]
[]
["Housing Developments - Local",22,null,12.889610389610391]
["Local: less than 2 months",15,0.68181818181818177,6.5619047619047617]
["Local: more than 2 months",7,0.31818181818181818,26.448979591836736]
[]
["Business & Industry - Major",0,null,"-"]
[]
["Business & Industry - Local",11,null,7.2987012987012987]
["Local: less than 2 months",9,0.81818181818181823,6.6666666666666661]
["Local: more than 2 months",2,0.18181818181818182,10.142857142857142]
[]
["Other developments - Major",0,null,"-"]
[]
["Other developments - Local",34,null,8.2605042016806713]
["Local: less than 2 months",26,0.76470588235294112,6.3516483516483513]
["Local: more than 2 months",8,0.23529411764705882,14.464285714285714]
[]
["EIA Developments",0,null,"-"]
["Other Consents",64,null,6.0625]
[]
["Decision Making: Applications subject to"]
["Planning/Legal Agreements",1,null,14.285714285714286]
["Local Reviews",3,null,5.5238095238095237]
[]
["Decision Making: Local Reviews and Appeals"]
[]
[null,"Total number of decisions","Original decision upheld (%)"]
["Local Reviews",3,0.66666666666666663]
["Appeals to Scottish Ministers2",1,1]
[]
["Enforcement Activity"]
[]
[null,"Number"]
["Cases Taken Up",22]
["Notices Served",0]
["Reports to Procurator Fiscal",1]
["Prosecutions",0]
["Number of breaches resolved",9]
["Approved and Delegated"]
[]
["Percentage Approved",0.96484375]
["Percentage Delegated",0.93406593406593408]
[]
["1. For a full description of the categories in this analysis please see NOTES page."]
["2. Cases where the decision was recalled and made by Ministers are not included in these figures."]
["3. Time has been removed from the decision time for 2 applications where delays were outwith the control of the local authority."]

{"sheet":"Orkney","index":32,"n_rows":77,"n_cols":6,"rows_kept":77,"cut":false,"hidden":false,"merged":[[61,0,61,3],[76,0,77,3]]}
["Planning Authority Performance Statistics1,3",null,null,"Orkney Islands"]
[null,null,null,"2018/19 Q1"]
[null,null,null,"All Applications excluding Legacy Cases",null,"Back to contents"]
[]
["Processing Agreements","Total Number of Decisions","% Within Agreed Timescales"]
["TOTAL",0,"-"]
["Major Applications",0,"-"]
["Local Applications",0,"-"]
["EIA  Applications",0,"-"]
["Other Applications",0,"-"]
["Applications with processing agreements are not included in the following figures."]
[null,"Total Number of Decisions","Proportion of Decisions","Average Time (Weeks)"]
["All Major Developments",0,null,"-"]
["Without Legal Agreement",0,"-","-"]
["With Legal Agreement",0,"-","-"]
[]
["All Local Developments",75,null,7.7428571428571429]
["Without Legal Agreement",75,1,7.7428571428571429]
["With Legal Agreement",0,0,"-"]
["Local: less than 2 months",55,0.73333333333333328,6.4701298701298695]
["Local: more than 2 months",20,0.26666666666666666,11.242857142857144]
[]
["All Local developments (non-householder)",60,null,8.0047619047619047]
["Local: less than 2 months",43,0.71666666666666667,6.6644518272425248]
["Local: more than 2 months",17,0.28333333333333333,11.394957983193278]
[]
["Householder developments",15,null,6.6952380952380954]
["Local: less than 2 months",12,0.8,5.7738095238095237]
["Local: more than 2 months",3,0.2,10.380952380952381]
[]
["Housing Developments - Major",0,null,"-"]
[]
["Housing Developments - Local",36,null,8.1150793650793656]
["Local: less than 2 months",25,0.69444444444444442,6.9771428571428578]
["Local: more than 2 months",11,0.30555555555555558,10.7012987012987]
[]
["Business & Industry - Major",0,null,"-"]
[]
["Business & Industry - Local",12,null,7.4761904761904763]
["Local: less than 2 months",9,0.75,6.4603174603174605]
["Local: more than 2 months",3,0.25,10.523809523809524]
[]
["Other developments - Major",0,null,"-"]
[]
["Other developments - Local",8,null,6.3392857142857144]
["Local: less than 2 months",7,0.875,6]
["Local: more than 2 months",1,0.125,8.7142857142857135]
[]
["EIA Developments",0,null,"-"]
["Other Consents",25,null,6.097142857142857]
[]
["Decision Making: Applications subject to"]
["Planning/Legal Agreements",0,null,"-"]
["Local Reviews",1,null,6]
[]
["Decision Making: Local Reviews and Appeals"]
[]
[null,"Total number of decisions","Original decision upheld (%)"]
["Local Reviews",1,1]
["Appeals to Scottish Ministers2",1,0]
[]
["Enforcement Activity"]
[]
[null,"Number"]
["Cases Taken Up",3]
["Notices Served",3]
["Reports to Procurator Fiscal",0]
["Prosecutions",0]
["Number of breaches resolved",16]
["Approved and Delegated"]
[]
["Percentage Approved",0.978494623655914]
["Percentage Delegated",0.97]
[]
["1. For a full description of the categories in this analysis please see NOTES page."]
["2. Cases where the decision was recalled and made by Ministers are not included in these figures."]
["3. Time has been removed from the decision time for 8 applications where delays were outwith the control of the local authority."]

{"sheet":"Perth and Kinross","index":33,"n_rows":77,"n_cols":6,"rows_kept":77,"cut":false,"hidden":false,"merged":[[76,0,77,3],[61,0,61,3]]}
["Planning Authority Performance Statistics1,3",null,null,"Perth and Kinross"]
[null,null,null,"2018/19 Q1"]
[null,null,null,"All Applications excluding Legacy Cases",null,"Back to contents"]
[]
["Processing Agreements","Total Number of Decisions","% Within Agreed Timescales"]
["TOTAL",3,1]
["Major Applications",2,1]
["Local Applications",1,1]
["EIA  Applications",0,"-"]
["Other Applications",0,"-"]
["Applications with processing agreements are not included in the following figures."]
[null,"Total Number of Decisions","Proportion of Decisions","Average Time (Weeks)"]
["All Major Developments",2,null,13.214285714285714]
["Without Legal Agreement",2,1,13.214285714285714]
["With Legal Agreement",0,0,"-"]
[]
["All Local Developments",341,null,7.8868873062421452]
["Without Legal Agreement",338,0.99120234604105573,7.8381234150464918]
["With Legal Agreement",3,8.7976539589442824E-3,13.380952380952381]
["Local: less than 2 months",286,0.83870967741935487,6.2197802197802199]
["Local: more than 2 months",55,0.16129032258064516,16.555844155844156]
[]
["All Local developments (non-householder)",208,null,8.6538461538461551]
["Local: less than 2 months",163,0.78365384615384615,6.04820333041192]
["Local: more than 2 months",45,0.21634615384615385,18.092063492063492]
[]
["Householder developments",133,null,6.687432867883996]
["Local: less than 2 months",123,0.92481203007518797,6.4471544715447155]
["Local: more than 2 months",10,7.5187969924812026E-2,9.6428571428571423]
[]
["Housing Developments - Major",1,null,11.857142857142858]
[]
["Housing Developments - Local",90,null,9.374603174603175]
["Local: less than 2 months",69,0.76666666666666672,5.8033126293995858]
["Local: more than 2 months",21,0.23333333333333334,21.108843537414966]
[]
["Business & Industry - Major",1,null,14.571428571428571]
[]
["Business & Industry - Local",47,null,7.3282674772036476]
["Local: less than 2 months",40,0.85106382978723405,6.2749999999999995]
["Local: more than 2 months",7,0.14893617021276595,13.346938775510205]
[]
["Other developments - Major",0,null,"-"]
[]
["Other developments - Local",53,null,7.8409703504043122]
["Local: less than 2 months",42,0.79245283018867929,6.1394557823129245]
["Local: more than 2 months",11,0.20754716981132076,14.337662337662337]
[]
["EIA Developments",0,null,"-"]
["Other Consents",82,null,6.2351916376306624]
[]
["Decision Making: Applications subject to"]
["Planning/Legal Agreements",3,null,13.380952380952381]
["Local Reviews",21,null,18.095238095238095]
[]
["Decision Making: Local Reviews and Appeals"]
[]
[null,"Total number of decisions","Original decision upheld (%)"]
["Local Reviews",21,0.8571428571428571]
["Appeals to Scottish Ministers2",2,0.5]
[]
["Enforcement Activity"]
[]
[null,"Number"]
["Cases Taken Up"," 94"]
["Notices Served"," 9"]
["Reports to Procurator Fiscal"," 0"]
["Prosecutions"," 0"]
["Number of breaches resolved"," 41"]
["Approved and Delegated"]
[]
["Percentage Approved",0.89949748743718594]
["Percentage Delegated",0.96495327102803741]
[]
["1. For a full description of the categories in this analysis please see NOTES page."]
["2. Cases where the decision was recalled and made by Ministers are not included in these figures."]
["3. Time has been removed from the decision time for 28 applications where delays were outwith the control of the local authority."]

{"sheet":"Renfrewshire","index":34,"n_rows":77,"n_cols":6,"rows_kept":77,"cut":false,"hidden":false,"merged":[[61,0,61,3],[76,0,77,3]]}
["Planning Authority Performance Statistics1,3",null,null,"Renfrewshire"]
[null,null,null,"2018/19 Q1"]
[null,null,null,"All Applications excluding Legacy Cases",null,"Back to contents"]
[]
["Processing Agreements","Total Number of Decisions","% Within Agreed Timescales"]
["TOTAL",0,"-"]
["Major Applications",0,"-"]
["Local Applications",0,"-"]
["EIA  Applications",0,"-"]
["Other Applications",0,"-"]
["Applications with processing agreements are not included in the following figures."]
[null,"Total Number of Decisions","Proportion of Decisions","Average Time (Weeks)"]
["All Major Developments",0,null,"-"]
["Without Legal Agreement",0,"-","-"]
["With Legal Agreement",0,"-","-"]
[]
["All Local Developments",185,null,8.9382239382239383]
["Without Legal Agreement",185,1,8.9382239382239383]
["With Legal Agreement",0,0,"-"]
["Local: less than 2 months",130,0.70270270270270274,6.9967032967032967]
["Local: more than 2 months",55,0.29729729729729731,13.527272727272727]
[]
["All Local developments (non-householder)",76,null,10.975563909774436]
["Local: less than 2 months",45,0.59210526315789469,7.196825396825397]
["Local: more than 2 months",31,0.40789473684210525,16.460829493087555]
[]
["Householder developments",109,null,7.5176933158584536]
["Local: less than 2 months",85,0.77981651376146788,6.8907563025210079]
["Local: more than 2 months",24,0.22018348623853212,9.738095238095239]
[]
["Housing Developments - Major",0,null,"-"]
[]
["Housing Developments - Local",19,null,9.9473684210526319]
["Local: less than 2 months",9,0.47368421052631576,7.5714285714285712]
["Local: more than 2 months",10,0.52631578947368418,12.085714285714285]
[]
["Business & Industry - Major",0,null,"-"]
[]
["Business & Industry - Local",3,null,8.3333333333333339]
["Local: less than 2 months",2,0.66666666666666663,8.1428571428571423]
["Local: more than 2 months",1,0.33333333333333331,8.7142857142857135]
[]
["Other developments - Major",0,null,"-"]
[]
["Other developments - Local",51,null,9.2549019607843128]
["Local: less than 2 months",34,0.66666666666666663,7.0420168067226898]
["Local: more than 2 months",17,0.33333333333333331,13.680672268907562]
[]
["EIA Developments",0,null,"-"]
["Other Consents",51,null,7.6330532212885149]
[]
["Decision Making: Applications subject to"]
["Planning/Legal Agreements",0,null,"-"]
["Local Reviews",2,null,10.857142857142858]
[]
["Decision Making: Local Reviews and Appeals"]
[]
[null,"Total number of decisions","Original decision upheld (%)"]
["Local Reviews",2,0.5]
["Appeals to Scottish Ministers2",0]
[]
["Enforcement Activity"]
[]
[null,"Number"]
["Cases Taken Up",0]
["Notices Served",0]
["Reports to Procurator Fiscal",0]
["Prosecutions",0]
["Number of breaches resolved",0]
["Approved and Delegated"]
[]
["Percentage Approved",0.9726027397260274]
["Percentage Delegated",0.98728813559322037]
[]
["1. For a full description of the categories in this analysis please see NOTES page."]
["2. Cases where the decision was recalled and made by Ministers are not included in these figures."]
["3. Time has been removed from the decision time for 25 applications where delays were outwith the control of the local authority."]

{"sheet":"Scottish Borders","index":35,"n_rows":77,"n_cols":6,"rows_kept":77,"cut":false,"hidden":false,"merged":[[61,0,61,3]]}
["Planning Authority Performance Statistics1,3",null,null,"Scottish Borders"]
[null,null,null,"2018/19 Q1"]
[null,null,null,"All Applications excluding Legacy Cases",null,"Back to contents"]
[]
["Processing Agreements","Total Number of Decisions","% Within Agreed Timescales"]
["TOTAL",114,0.80701754385964908]
["Major Applications",1,1]
["Local Applications",94,0.7978723404255319]
["EIA  Applications",0,"-"]
["Other Applications",19,0.84210526315789469]
["Applications with processing agreements are not included in the following figures."]
[null,"Total Number of Decisions","Proportion of Decisions","Average Time (Weeks)"]
["All Major Developments",0,null,"-"]
["Without Legal Agreement",0,"-","-"]
["With Legal Agreement",0,"-","-"]
[]
["All Local Developments",161,null,7.3043478260869561]
["Without Legal Agreement",160,0.99378881987577639,7.2124999999999995]
["With Legal Agreement",1,6.2111801242236021E-3,22]
["Local: less than 2 months",138,0.8571428571428571,6.1387163561076603]
["Local: more than 2 months",23,0.14285714285714285,14.298136645962732]
[]
["All Local developments (non-householder)",73,null,8.493150684931507]
["Local: less than 2 months",56,0.76712328767123283,6.2933673469387754]
["Local: more than 2 months",17,0.23287671232876711,15.739495798319327]
[]
["Householder developments",88,null,6.3181818181818183]
["Local: less than 2 months",82,0.93181818181818177,6.033101045296168]
["Local: more than 2 months",6,6.8181818181818177E-2,10.214285714285714]
[]
["Housing Developments - Major",0,null,"-"]
[]
["Housing Developments - Local",9,null,9.7460317460317469]
["Local: less than 2 months",5,0.55555555555555558,6.7142857142857144]
["Local: more than 2 months",4,0.44444444444444442,13.535714285714286]
[]
["Business & Industry - Major",0,null,"-"]
[]
["Business & Industry - Local",12,null,6.4047619047619051]
["Local: less than 2 months",10,0.83333333333333337,5.8999999999999995]
["Local: more than 2 months",2,0.16666666666666666,8.9285714285714288]
[]
["Other developments - Major",0,null,"-"]
[]
["Other developments - Local",49,null,6.9766763848396502]
["Local: less than 2 months",39,0.79591836734693877,6.3882783882783878]
["Local: more than 2 months",10,0.20408163265306123,9.2714285714285722]
[]
["EIA Developments",0,null,"-"]
["Other Consents",50,null,6.5828571428571427]
[]
["Decision Making: Applications subject to"]
["Planning/Legal Agreements",1,null,22]
["Local Reviews",9,null,8]
[]
["Decision Making: Local Reviews and Appeals"]
[]
[null,"Total number of decisions","Original decision upheld (%)"]
["Local Reviews",9,0.44444444444444442]
["Appeals to Scottish Ministers2",3,0.33300000000000002]
[]
["Enforcement Activity"]
[]
[null,"Number"]
["Cases Taken Up",54]
["Notices Served",2]
["Reports to Procurator Fiscal",0]
["Prosecutions",0]
["Number of breaches resolved",51]
["Approved and Delegated"]
[]
["Percentage Approved",0.97756410256410253]
["Percentage Delegated",0.97538461538461541]
[]
["1. For a full description of the categories in this analysis please see NOTES page."]
["2. Cases where the decision was recalled and made by Ministers are not included in these figures."]
["3. Time has not been removed from the decision time for any applications."]

{"sheet":"Shetland Islands","index":36,"n_rows":77,"n_cols":6,"rows_kept":77,"cut":false,"hidden":false,"merged":[[61,0,61,3],[76,0,77,3]]}
["Planning Authority Performance Statistics1,3",null,null,"Shetland Islands"]
[null,null,null,"2018/19 Q1"]
[null,null,null,"All Applications excluding Legacy Cases",null,"Back to contents"]
[]
["Processing Agreements","Total Number of Decisions","% Within Agreed Timescales"]
["TOTAL",0,"-"]
["Major Applications",0,"-"]
["Local Applications",0,"-"]
["EIA  Applications",0,"-"]
["Other Applications",0,"-"]
["Applications with processing agreements are not included in the following figures."]
[null,"Total Number of Decisions","Proportion of Decisions","Average Time (Weeks)"]
["All Major Developments",0,null,"-"]
["Without Legal Agreement",0,"-","-"]
["With Legal Agreement",0,"-","-"]
[]
["All Local Developments",57,null,7.8195488721804507]
["Without Legal Agreement",57,1,7.8195488721804507]
["With Legal Agreement",0,0,"-"]
["Local: less than 2 months",43,0.75438596491228072,5.2857142857142856]
["Local: more than 2 months",14,0.24561403508771928,15.602040816326531]
[]
["All Local developments (non-householder)",43,null,8.5116279069767451]
["Local: less than 2 months",31,0.72093023255813948,5.4976958525345623]
["Local: more than 2 months",12,0.27906976744186046,16.297619047619047]
[]
["Householder developments",14,null,5.6938775510204076]
["Local: less than 2 months",12,0.8571428571428571,4.7380952380952381]
["Local: more than 2 months",2,0.14285714285714285,11.428571428571429]
[]
["Housing Developments - Major",0,null,"-"]
[]
["Housing Developments - Local",14,null,11.459183673469386]
["Local: less than 2 months",8,0.5714285714285714,6.3035714285714288]
["Local: more than 2 months",6,0.42857142857142855,18.333333333333336]
[]
["Business & Industry - Major",0,null,"-"]
[]
["Business & Industry - Local",9,null,8.7619047619047628]
["Local: less than 2 months",6,0.66666666666666663,4.8095238095238093]
["Local: more than 2 months",3,0.33333333333333331,16.666666666666668]
[]
["Other developments - Major",0,null,"-"]
[]
["Other developments - Local",10,null,5.9714285714285706]
["Local: less than 2 months",8,0.8,4.3035714285714288]
["Local: more than 2 months",2,0.2,12.642857142857142]
[]
["EIA Developments",0,null,"-"]
["Other Consents",11,null,4.7272727272727275]
[]
["Decision Making: Applications subject to"]
["Planning/Legal Agreements",0,null,"-"]
["Local Reviews",1,null,10.428571428571429]
[]
["Decision Making: Local Reviews and Appeals"]
[]
[null,"Total number of decisions","Original decision upheld (%)"]
["Local Reviews",1,0]
["Appeals to Scottish Ministers2",0]
[]
["Enforcement Activity"]
[]
[null,"Number"]
["Cases Taken Up",0]
["Notices Served",0]
["Reports to Procurator Fiscal",0]
["Prosecutions",0]
["Number of breaches resolved",15]
["Approved and Delegated"]
[]
["Percentage Approved",1]
["Percentage Delegated",0.98529411764705888]
[]
["1. For a full description of the categories in this analysis please see NOTES page."]
["2. Cases where the decision was recalled and made by Ministers are not included in these figures."]
["3. Time has been removed from the decision time for 5 applications where delays were outwith the control of the local authority."]

{"sheet":"South Ayrshire","index":37,"n_rows":77,"n_cols":6,"rows_kept":77,"cut":false,"hidden":false,"merged":[[61,0,61,3]]}
["Planning Authority Performance Statistics1,3",null,null,"South Ayrshire"]
[null,null,null,"2018/19 Q1"]
[null,null,null,"All Applications excluding Legacy Cases",null,"Back to contents"]
[]
["Processing Agreements","Total Number of Decisions","% Within Agreed Timescales"]
["TOTAL",4,1]
["Major Applications",1,1]
["Local Applications",3,1]
["EIA  Applications",0,"-"]
["Other Applications",0,"-"]
["Applications with processing agreements are not included in the following figures."]
[null,"Total Number of Decisions","Proportion of Decisions","Average Time (Weeks)"]
["All Major Developments",1,null,5.1428571428571432]
["Without Legal Agreement",1,1,5.1428571428571432]
["With Legal Agreement",0,0,"-"]
[]
["All Local Developments",164,null,6.6550522648083623]
["Without Legal Agreement",164,1,6.6550522648083623]
["With Legal Agreement",0,0,"-"]
["Local: less than 2 months",154,0.93902439024390238,6.4211502782931351]
["Local: more than 2 months",10,6.097560975609756E-2,10.257142857142856]
[]
["All Local developments (non-householder)",66,null,6.2510822510822512]
["Local: less than 2 months",62,0.93939393939393945,6.0230414746543781]
["Local: more than 2 months",4,6.0606060606060608E-2,9.7857142857142865]
[]
["Householder developments",98,null,6.9271137026239069]
["Local: less than 2 months",92,0.93877551020408168,6.6894409937888204]
["Local: more than 2 months",6,6.1224489795918366E-2,10.571428571428571]
[]
["Housing Developments - Major",0,null,"-"]
[]
["Housing Developments - Local",13,null,7.1208791208791213]
["Local: less than 2 months",12,0.92307692307692313,6.8571428571428568]
["Local: more than 2 months",1,7.6923076923076927E-2,10.285714285714286]
[]
["Business & Industry - Major",1,null,5.1428571428571432]
[]
["Business & Industry - Local",10,null,5.2857142857142856]
["Local: less than 2 months",10,1,5.2857142857142856]
["Local: more than 2 months",0,0,"-"]
[]
["Other developments - Major",0,null,"-"]
[]
["Other developments - Local",42,null,6.2312925170068025]
["Local: less than 2 months",39,0.9285714285714286,5.9706959706959708]
["Local: more than 2 months",3,7.1428571428571425E-2,9.6190476190476186]
[]
["EIA Developments",0,null,"-"]
["Other Consents",64,null,5.0379464285714288]
[]
["Decision Making: Applications subject to"]
["Planning/Legal Agreements",0,null,"-"]
["Local Reviews",8,null,19.285714285714285]
[]
["Decision Making: Local Reviews and Appeals"]
[]
[null,"Total number of decisions","Original decision upheld (%)"]
["Local Reviews",8,0.5]
["Appeals to Scottish Ministers2",2,1]
[]
["Enforcement Activity"]
[]
[null,"Number"]
["Cases Taken Up",74]
["Notices Served",5]
["Reports to Procurator Fiscal",0]
["Prosecutions",0]
["Number of breaches resolved",72]
["Approved and Delegated"]
[]
["Percentage Approved",0.88888888888888884]
["Percentage Delegated",0.97854077253218885]
[]
["1. For a full description of the categories in this analysis please see NOTES page."]
["2. Cases where the decision was recalled and made by Ministers are not included in these figures."]
["3. Time has not been removed from the decision time for any applications."]

{"sheet":"South Lanarkshire","index":38,"n_rows":77,"n_cols":6,"rows_kept":77,"cut":false,"hidden":false,"merged":[[61,0,61,3],[76,0,77,3]]}
["Planning Authority Performance Statistics1,3",null,null,"South Lanarkshire"]
[null,null,null,"2018/19 Q1"]
[null,null,null,"All Applications excluding Legacy Cases",null,"Back to contents"]
[]
["Processing Agreements","Total Number of Decisions","% Within Agreed Timescales"]
["TOTAL",2,0.5]
["Major Applications",1,0]
["Local Applications",1,1]
["EIA  Applications",0,"-"]
["Other Applications",0,"-"]
["Applications with processing agreements are not included in the following figures."]
[null,"Total Number of Decisions","Proportion of Decisions","Average Time (Weeks)"]
["All Major Developments",4,null,26.321428571428573]
["Without Legal Agreement",3,0.75,26.428571428571427]
["With Legal Agreement",1,0.25,26]
[]
["All Local Developments",374,null,10.57868601986249]
["Without Legal Agreement",374,1,10.57868601986249]
["With Legal Agreement",0,0,"-"]
["Local: less than 2 months",181,0.48395721925133689,6.235990528808208]
["Local: more than 2 months",193,0.51604278074866305,14.65136935603257]
[]
["All Local developments (non-householder)",141,null,14.724417426545086]
["Local: less than 2 months",33,0.23404255319148937,6.774891774891775]
["Local: more than 2 months",108,0.76595744680851063,17.153439153439155]
[]
["Householder developments",233,null,8.0698957694665854]
["Local: less than 2 months",148,0.63519313304721026,6.115830115830116]
["Local: more than 2 months",85,0.36480686695278969,11.472268907563025]
[]
["Housing Developments - Major",1,null,16]
[]
["Housing Developments - Local",67,null,16.599147121535182]
["Local: less than 2 months",15,0.22388059701492538,7.1428571428571432]
["Local: more than 2 months",52,0.77611940298507465,19.326923076923077]
[]
["Business & Industry - Major",1,null,25.857142857142858]
[]
["Business & Industry - Local",13,null,15.659340659340659]
["Local: less than 2 months",4,0.30769230769230771,5.8928571428571432]
["Local: more than 2 months",9,0.69230769230769229,20]
[]
["Other developments - Major",1,null,37.428571428571431]
[]
["Other developments - Local",54,null,12.640211640211641]
["Local: less than 2 months",12,0.22222222222222221,6.4761904761904763]
["Local: more than 2 months",42,0.77777777777777779,14.401360544217686]
[]
["EIA Developments",0,null,"-"]
["Other Consents",73,null,9.1174168297455971]
[]
["Decision Making: Applications subject to"]
["Planning/Legal Agreements",1,null,26]
["Local Reviews",0,null,"-"]
[]
["Decision Making: Local Reviews and Appeals"]
[]
[null,"Total number of decisions","Original decision upheld (%)"]
["Local Reviews",0,"-"]
["Appeals to Scottish Ministers2",0]
[]
["Enforcement Activity"]
[]
[null,"Number"]
["Cases Taken Up",23]
["Notices Served",4]
["Reports to Procurator Fiscal",0]
["Prosecutions",0]
["Number of breaches resolved",11]
["Approved and Delegated"]
[]
["Percentage Approved",0.99300699300699302]
["Percentage Delegated",0.9381898454746137]
[]
["1. For a full description of the categories in this analysis please see NOTES page."]
["2. Cases where the decision was recalled and made by Ministers are not included in these figures."]
["3. Time has been removed from the decision time for 5 applications where delays were outwith the control of the local authority."]

{"sheet":"Stirling","index":39,"n_rows":77,"n_cols":6,"rows_kept":77,"cut":false,"hidden":false,"merged":[[61,0,61,3],[76,0,77,3]]}
["Planning Authority Performance Statistics1,3",null,null,"Stirling"]
[null,null,null,"2018/19 Q1"]
[null,null,null,"All Applications excluding Legacy Cases",null,"Back to contents"]
[]
["Processing Agreements","Total Number of Decisions","% Within Agreed Timescales"]
["TOTAL",0,"-"]
["Major Applications",0,"-"]
["Local Applications",0,"-"]
["EIA  Applications",0,"-"]
["Other Applications",0,"-"]
["Applications with processing agreements are not included in the following figures."]
[null,"Total Number of Decisions","Proportion of Decisions","Average Time (Weeks)"]
["All Major Developments",1,null,35.857142857142854]
["Without Legal Agreement",1,1,35.857142857142854]
["With Legal Agreement",0,0,"-"]
[]
["All Local Developments",149,null,8.8389261744966436]
["Without Legal Agreement",149,1,8.8389261744966436]
["With Legal Agreement",0,0,"-"]
["Local: less than 2 months",79,0.53020134228187921,5.5099457504520801]
["Local: more than 2 months",70,0.46979865771812079,12.59591836734694]
[]
["All Local developments (non-householder)",71,null,10.69215291750503]
["Local: less than 2 months",23,0.323943661971831,5.5465838509316772]
["Local: more than 2 months",48,0.676056338028169,13.157738095238097]
[]
["Householder developments",78,null,7.1520146520146515]
["Local: less than 2 months",56,0.71794871794871795,5.4948979591836737]
["Local: more than 2 months",22,0.28205128205128205,11.370129870129871]
[]
["Housing Developments - Major",0,null,"-"]
[]
["Housing Developments - Local",27,null,12.444444444444445]
["Local: less than 2 months",7,0.25925925925925924,6.2244897959183669]
["Local: more than 2 months",20,0.7407407407407407,14.62142857142857]
[]
["Business & Industry - Major",0,null,"-"]
[]
["Business & Industry - Local",3,null,10.095238095238097]
["Local: less than 2 months",1,0.33333333333333331,3.7142857142857144]
["Local: more than 2 months",2,0.66666666666666663,13.285714285714286]
[]
["Other developments - Major",1,null,35.857142857142854]
[]
["Other developments - Local",33,null,9.3549783549783552]
["Local: less than 2 months",14,0.42424242424242425,5.2142857142857144]
["Local: more than 2 months",19,0.5757575757575758,12.406015037593985]
[]
["EIA Developments",0,null,"-"]
["Other Consents",36,null,10.019841269841269]
[]
["Decision Making: Applications subject to"]
["Planning/Legal Agreements",0,null,"-"]
["Local Reviews",2,null,24.071428571428573]
[]
["Decision Making: Local Reviews and Appeals"]
[]
[null,"Total number of decisions","Original decision upheld (%)"]
["Local Reviews",2,1]
["Appeals to Scottish Ministers2",0,"-"]
[]
["Enforcement Activity"]
[]
[null,"Number"]
["Cases Taken Up",9]
["Notices Served",3]
["Reports to Procurator Fiscal",0]
["Prosecutions",0]
["Number of breaches resolved",23]
["Approved and Delegated"]
[]
["Percentage Approved",0.9505494505494505]
["Percentage Delegated",0.9623655913978495]
[]
["1. For a full description of the categories in this analysis please see NOTES page."]
["2. Cases where the decision was recalled and made by Ministers are not included in these figures."]
["3. Time has been removed from the decision time for 0 applications where delays were outwith the control of the local authority."]

{"sheet":"West Dunbartonshire","index":40,"n_rows":84,"n_cols":6,"rows_kept":84,"cut":false,"hidden":false,"merged":[[76,0,77,3],[61,0,61,3]]}
["Planning Authority Performance Statistics1,3",null,null,"West Dunbartonshire"]
[null,null,null,"2018/19 Q1"]
[null,null,null,"All Applications excluding Legacy Cases",null,"Back to contents"]
[]
["Processing Agreements","Total Number of Decisions","% Within Agreed Timescales"]
["TOTAL",1,0]
["Major Applications",0,"-"]
["Local Applications",1,0]
["EIA  Applications",0,"-"]
["Other Applications",0,"-"]
["Applications with processing agreements are not included in the following figures."]
[null,"Total Number of Decisions","Proportion of Decisions","Average Time (Weeks)"]
["All Major Developments",1,null,29]
["Without Legal Agreement",1,1,29]
["With Legal Agreement",0,0,"-"]
[]
["All Local Developments",57,null,9.473684210526315]
["Without Legal Agreement",57,1,9.473684210526315]
["With Legal Agreement",0,0,"-"]
["Local: less than 2 months",35,0.61403508771929827,6.444897959183673]
["Local: more than 2 months",22,0.38596491228070173,14.292207792207792]
[]
["All Local developments (non-householder)",18,null,13.666666666666668]
["Local: less than 2 months",4,0.22222222222222221,5.2142857142857144]
["Local: more than 2 months",14,0.77777777777777779,16.081632653061224]
[]
["Householder developments",39,null,7.5384615384615383]
["Local: less than 2 months",31,0.79487179487179482,6.6036866359447002]
["Local: more than 2 months",8,0.20512820512820512,11.160714285714286]
[]
["Housing Developments - Major",0,null,"-"]
[]
["Housing Developments - Local",2,null,13.214285714285714]
["Local: less than 2 months",0,0,"-"]
["Local: more than 2 months",2,1,13.214285714285714]
[]
["Business & Industry - Major",0,null,"-"]
[]
["Business & Industry - Local",4,null,11.142857142857142]
["Local: less than 2 months",2,0.5,5.2142857142857144]
["Local: more than 2 months",2,0.5,17.071428571428573]
[]
["Other developments - Major",1,null,29]
[]
["Other developments - Local",12,null,14.583333333333332]
["Local: less than 2 months",2,0.16666666666666666,5.2142857142857144]
["Local: more than 2 months",10,0.83333333333333337,16.457142857142859]
[]
["EIA Developments",0,null,"-"]
["Other Consents",10,null,10.971428571428572]
[]
["Decision Making: Applications subject to"]
["Planning/Legal Agreements",0,null,"-"]
["Local Reviews",0,null,"-"]
[]
["Decision Making: Local Reviews and Appeals"]
[]
[null,"Total number of decisions","Original decision upheld (%)"]
["Local Reviews",0,"-"]
["Appeals to Scottish Ministers2",0]
[]
["Enforcement Activity"]
[]
[null,"Number"]
["Cases Taken Up",23]
["Notices Served",0]
["Reports to Procurator Fiscal",0]
["Prosecutions",0]
["Number of breaches resolved",16]
["Approved and Delegated"]
[]
["Percentage Approved",1]
["Percentage Delegated",0.89855072463768115]
[]
["1. For a full description of the categories in this analysis please see NOTES page."]
["2. Cases where the decision was recalled and made by Ministers are not included in these figures."]
["3. Time has been removed from the decision time for 17 applications where delays were outwith the control of the local authority."]
[]
[]
[]
[]
[]
[]
[" "]

{"sheet":"West Lothian","index":41,"n_rows":77,"n_cols":6,"rows_kept":77,"cut":false,"hidden":false,"merged":[[76,0,77,3],[61,0,61,3]]}
["Planning Authority Performance Statistics1,3",null,null,"West Lothian"]
[null,null,null,"2018/19 Q1"]
[null,null,null,"All Applications excluding Legacy Cases",null,"Back to contents"]
[]
["Processing Agreements","Total Number of Decisions","% Within Agreed Timescales"]
["TOTAL",7,1]
["Major Applications",0,"-"]
["Local Applications",7,1]
["EIA  Applications",0,"-"]
["Other Applications",0,"-"]
["Applications with processing agreements are not included in the following figures."]
[null,"Total Number of Decisions","Proportion of Decisions","Average Time (Weeks)"]
["All Major Developments",2,null,140.71428571428572]
["Without Legal Agreement",1,0.5,47.285714285714285]
["With Legal Agreement",1,0.5,234.14285714285714]
[]
["All Local Developments",133,null,9.9001074113856067]
["Without Legal Agreement",126,0.94736842105263153,8.3662131519274379]
["With Legal Agreement",7,5.2631578947368418E-2,37.510204081632651]
["Local: less than 2 months",108,0.81203007518796988,6.6931216931216939]
["Local: more than 2 months",25,0.18796992481203006,23.754285714285714]
[]
["All Local developments (non-householder)",59,null,13.154963680387409]
["Local: less than 2 months",39,0.66101694915254239,6.1538461538461542]
["Local: more than 2 months",20,0.33898305084745761,26.807142857142857]
[]
["Householder developments",74,null,7.3050193050193055]
["Local: less than 2 months",69,0.93243243243243246,6.9979296066252585]
["Local: more than 2 months",5,6.7567567567567571E-2,11.542857142857143]
[]
["Housing Developments - Major",2,null,140.71428571428572]
[]
["Housing Developments - Local",16,null,20.455357142857142]
["Local: less than 2 months",8,0.5,6.1607142857142856]
["Local: more than 2 months",8,0.5,34.75]
[]
["Business & Industry - Major",0,null,"-"]
[]
["Business & Industry - Local",9,null,12.857142857142858]
["Local: less than 2 months",7,0.77777777777777779,6.3061224489795924]
["Local: more than 2 months",2,0.22222222222222221,35.785714285714285]
[]
["Other developments - Major",0,null,"-"]
[]
["Other developments - Local",31,null,8.5161290322580641]
["Local: less than 2 months",23,0.74193548387096775,6]
["Local: more than 2 months",8,0.25806451612903225,15.75]
[]
["EIA Developments",0,null,"-"]
["Other Consents",37,null,5.5405405405405403]
[]
["Decision Making: Applications subject to"]
["Planning/Legal Agreements",8,null,62.089285714285715]
["Local Reviews",2,null,4.2142857142857144]
[]
["Decision Making: Local Reviews and Appeals"]
[]
[null,"Total number of decisions","Original decision upheld (%)"]
["Local Reviews",2,1]
["Appeals to Scottish Ministers2",4,0.75]
[]
["Enforcement Activity"]
[]
[null,"Number"]
["Cases Taken Up",107]
["Notices Served",11]
["Reports to Procurator Fiscal",0]
["Prosecutions",0]
["Number of breaches resolved",116]
["Approved and Delegated"]
[]
["Percentage Approved",0.91428571428571426]
["Percentage Delegated",0.91620111731843579]
[]
["1. For a full description of the categories in this analysis please see NOTES page."]
["2. Cases where the decision was recalled and made by Ministers are not included in these figures."]
["3. Time has been removed from the decision time for 8 applications where delays were outwith the control of the local authority."]